Department Family,Entity,Date,Expense Type,Expense Area,Supplier,Transaction Number,AP Amount,Supplier Postcode
Department of Health,NHS Sheffield CCG,31/12/2021,Computer Hardware Purch,PRIMARY CARE IT,DELL CORPORATION LTD,39014279,21720,RG12 1LF
Department of Health,NHS Sheffield CCG,31/12/2021,Computer Hardware Purch,PRIMARY CARE IT,DELL CORPORATION LTD,39014279,4344,RG12 1LF
Department of Health,NHS Sheffield CCG,31/12/2021,CLINICAL AND MEDICAL GOODS & SERVICES - HOSPITAL DISCHARGE PROGRAMME,COMMUNITY SERVICES,SHEFFIELD CITY COUNCIL,39018989,728629,S1 2HH
Department of Health,NHS Sheffield CCG,31/12/2021,Clinical&Medical-Independent Sector,ACUTE COMMISSIONING,BMI HEALTHCARE LTD,39019096,51688.33,SK3 0XN
Department of Health,NHS Sheffield CCG,31/12/2021,Hcare Srv Rec Fdtn Trust-Contract Baseline,ACUTE COMMISSIONING,SHEFFIELD TEACHING HOSPITALS NHS FOUNDATION TRUST,39019383,-710990,S5 7AU
Department of Health,NHS Sheffield CCG,31/12/2021,Clinical&Medical-Serv Recd-F Trsts,CLINICAL LEADS,ROTHERHAM NHS FOUNDATION TRUST,39019387,60000,S60 2UD
Department of Health,NHS Sheffield CCG,31/12/2021,C&M- PCN DES Nursing Associate,PRC DELEGATED CO-COMMISSIONING,PRIMARY CARE SHEFFIELD LTD,39019439,1983.15,S9 4EU
Department of Health,NHS Sheffield CCG,31/12/2021,C&M-GMS C&M-APMS PCN DES Physician Assoc,PRC DELEGATED CO-COMMISSIONING,PRIMARY CARE SHEFFIELD LTD,39019439,8653.65,S9 4EU
Department of Health,NHS Sheffield CCG,31/12/2021,C&M-GMS PCN DES Clin Pharmacist,PRC DELEGATED CO-COMMISSIONING,PRIMARY CARE SHEFFIELD LTD,39019439,21802.94,S9 4EU
Department of Health,NHS Sheffield CCG,31/12/2021,C&M-GMS PCN DES Home/RR paramedic,PRC DELEGATED CO-COMMISSIONING,PRIMARY CARE SHEFFIELD LTD,39019439,4549.5,S9 4EU
Department of Health,NHS Sheffield CCG,31/12/2021,C&M-GMS PCN DES Physiotherapist,PRC DELEGATED CO-COMMISSIONING,PRIMARY CARE SHEFFIELD LTD,39019439,8855,S9 4EU
Department of Health,NHS Sheffield CCG,31/12/2021,C&M-GMS PCN DES Soc Prescribing,PRC DELEGATED CO-COMMISSIONING,PRIMARY CARE SHEFFIELD LTD,39019439,2917.68,S9 4EU
Department of Health,NHS Sheffield CCG,31/12/2021,C&M-GMS C&M-APMS PCN DES Physician Assoc,PRC DELEGATED CO-COMMISSIONING,PRIMARY CARE SHEFFIELD LTD,39019446,8218.44,S9 4EU
Department of Health,NHS Sheffield CCG,31/12/2021,C&M-GMS PCN DES Clin Pharmacist,PRC DELEGATED CO-COMMISSIONING,PRIMARY CARE SHEFFIELD LTD,39019446,26771.46,S9 4EU
Department of Health,NHS Sheffield CCG,31/12/2021,C&M-GMS PCN DES Soc Prescribing,PRC DELEGATED CO-COMMISSIONING,PRIMARY CARE SHEFFIELD LTD,39019446,8453.42,S9 4EU
Department of Health,NHS Sheffield CCG,31/12/2021,C&M-PCN DES Adult Mental Health Practitioner,PRC DELEGATED CO-COMMISSIONING,PRIMARY CARE SHEFFIELD LTD,39019446,1363.09,S9 4EU
Department of Health,NHS Sheffield CCG,31/12/2021,C&M-PCN DES PHARMACY TECHNICIANS,PRC DELEGATED CO-COMMISSIONING,PRIMARY CARE SHEFFIELD LTD,39019446,8331.72,S9 4EU
Department of Health,NHS Sheffield CCG,31/12/2021,Computer Software/License,IM&T,ARDENS HEALTH INFORMATICS LTD,39029788,96543.58,SP5 3HG
Department of Health,NHS Sheffield CCG,31/12/2021,Computer Software/License,IM&T,ARDENS HEALTH INFORMATICS LTD,39029788,19308.7,SP5 3HG
Department of Health,NHS Sheffield CCG,31/12/2021,Computer Software/License,IM&T,ARDENS HEALTH INFORMATICS LTD,39029790,56773.49,SP5 3HG
Department of Health,NHS Sheffield CCG,31/12/2021,Computer Software/License,IM&T,ARDENS HEALTH INFORMATICS LTD,39029790,11354.69,SP5 3HG
Department of Health,NHS Sheffield CCG,31/12/2021,Clinical&Medical-Independent Sector,Mental Health Services - S117 Mental Health,MOORVILLE RESIDENTIAL,39033554,28332.76,S10 5FA
Department of Health,NHS Sheffield CCG,31/12/2021,Cont Care-Learning Disab(<65),CHC ADULT FULLY FUNDED,MOORVILLE RESIDENTIAL,39033554,9171.66,S10 5FA
Department of Health,NHS Sheffield CCG,31/12/2021,Cont Care-Learning Disab(<65),CHC ADULT JOINT FUNDED,MOORVILLE RESIDENTIAL,39033554,4333.18,S10 5FA
Department of Health,NHS Sheffield CCG,31/12/2021,Cont Care-Mental Health (<65),CHC ADULT JOINT FUNDED,MOORVILLE RESIDENTIAL,39033554,506.23,S10 5FA
Department of Health,NHS Sheffield CCG,31/12/2021,Clinical&Medical-Independent Sector,ACUTE COMMISSIONING,CLAREMONT HOSPITAL,39046615,70529,S10 5UB
Department of Health,NHS Sheffield CCG,31/12/2021,Voids and Subsidies,PRC DELEGATED CO-COMMISSIONING,COMMUNITY HEALTH PARTNERSHIPS LTD,39046804,39478.29,M1 3LD
Department of Health,NHS Sheffield CCG,31/12/2021,Voids and Subsidies,RECHARGES NHS PROPERTY SERVICES LTD,COMMUNITY HEALTH PARTNERSHIPS LTD,39046804,112844.21,M1 3LD
Department of Health,NHS Sheffield CCG,31/12/2021,Clinical&Medical-Independent Sector,ACUTE COMMISSIONING,SPAMEDICA LTD,39046830,111340.67,BL1 1HU
Department of Health,NHS Sheffield CCG,31/12/2021,Cont Care-Learning Disab(<65),CHC ADULT FULLY FUNDED,BESPOKE CARE AND SUPPORT LTD,39046900,34058.4,S73 0HQ
Department of Health,NHS Sheffield CCG,31/12/2021,Clinical&Medical-Serv Recd-F Trsts,BEREAVEMENT SERVICE,SHEFFIELD TEACHING HOSPITALS NHS FOUNDATION TRUST,39047065,350100,S5 7AU
Department of Health,NHS Sheffield CCG,31/12/2021,C&M-GMS C&M-APMS PCN DES Physician Assoc,PRC DELEGATED CO-COMMISSIONING,PRIMARY CARE SHEFFIELD LTD,39063513,12266.5,S9 4EU
Department of Health,NHS Sheffield CCG,31/12/2021,C&M-GMS PCN DES Clin Pharmacist,PRC DELEGATED CO-COMMISSIONING,PRIMARY CARE SHEFFIELD LTD,39063513,15915.2,S9 4EU
Department of Health,NHS Sheffield CCG,31/12/2021,C&M-GMS PCN DES Soc Prescribing,PRC DELEGATED CO-COMMISSIONING,PRIMARY CARE SHEFFIELD LTD,39063513,2333.33,S9 4EU
Department of Health,NHS Sheffield CCG,31/12/2021,C&M-PCN DES PHARMACY TECHNICIANS,PRC DELEGATED CO-COMMISSIONING,PRIMARY CARE SHEFFIELD LTD,39063513,5220.6,S9 4EU
Department of Health,NHS Sheffield CCG,31/12/2021,C&M-PCN DES Trainee Nursing Associate,PRC DELEGATED CO-COMMISSIONING,PRIMARY CARE SHEFFIELD LTD,39063513,2059.24,S9 4EU
Department of Health,NHS Sheffield CCG,31/12/2021,C&M- PCN DES CARE COORDINATOR,PRC DELEGATED CO-COMMISSIONING,PRIMARY CARE SHEFFIELD LTD,39067602,1109.48,S9 4EU
Department of Health,NHS Sheffield CCG,31/12/2021,C&M-GMS C&M-APMS PCN DES Physician Assoc,PRC DELEGATED CO-COMMISSIONING,PRIMARY CARE SHEFFIELD LTD,39067602,307.29,S9 4EU
Department of Health,NHS Sheffield CCG,31/12/2021,C&M-GMS PCN DES Clin Pharmacist,PRC DELEGATED CO-COMMISSIONING,PRIMARY CARE SHEFFIELD LTD,39067602,11511.31,S9 4EU
Department of Health,NHS Sheffield CCG,31/12/2021,C&M-GMS PCN DES Home/RR paramedic,PRC DELEGATED CO-COMMISSIONING,PRIMARY CARE SHEFFIELD LTD,39067602,4557.85,S9 4EU
Department of Health,NHS Sheffield CCG,31/12/2021,C&M-GMS PCN DES Physiotherapist,PRC DELEGATED CO-COMMISSIONING,PRIMARY CARE SHEFFIELD LTD,39067602,5220.71,S9 4EU
Department of Health,NHS Sheffield CCG,31/12/2021,C&M-GMS PCN DES Soc Prescribing,PRC DELEGATED CO-COMMISSIONING,PRIMARY CARE SHEFFIELD LTD,39067602,5616.6,S9 4EU
Department of Health,NHS Sheffield CCG,31/12/2021,C&M-PCN DES Adult Mental Health Practitioner,PRC DELEGATED CO-COMMISSIONING,PRIMARY CARE SHEFFIELD LTD,39067602,2264.25,S9 4EU
Department of Health,NHS Sheffield CCG,31/12/2021,C&M-PCN DES OCCUPATIONAL THERAPISTS,PRC DELEGATED CO-COMMISSIONING,PRIMARY CARE SHEFFIELD LTD,39067602,4267.1,S9 4EU
Department of Health,NHS Sheffield CCG,31/12/2021,C&M-PCN DES PHARMACY TECHNICIANS,PRC DELEGATED CO-COMMISSIONING,PRIMARY CARE SHEFFIELD LTD,39067602,3946.37,S9 4EU
Department of Health,NHS Sheffield CCG,31/12/2021,C&M-PCN DES Trainee Nursing Associate,PRC DELEGATED CO-COMMISSIONING,PRIMARY CARE SHEFFIELD LTD,39067602,1733.33,S9 4EU
Department of Health,NHS Sheffield CCG,31/12/2021,C&M-PMS Contract Value,PRC DELEGATED CO-COMMISSIONING,WOODSEATS MEDICAL CENTRE,39107871,88102.47,S8 0SH
Department of Health,NHS Sheffield CCG,31/12/2021,C&M-PMS DES Learn Dsblty Hlth Chk,PRC DELEGATED CO-COMMISSIONING,WOODSEATS MEDICAL CENTRE,39107871,980,S8 0SH
Department of Health,NHS Sheffield CCG,31/12/2021,C&M-PMS LONG COVID ES,PRC DELEGATED CO-COMMISSIONING,WOODSEATS MEDICAL CENTRE,39107871,443.06,S8 0SH
Department of Health,NHS Sheffield CCG,31/12/2021,C&M-PMS PCN DES Participation,PRC DELEGATED CO-COMMISSIONING,WOODSEATS MEDICAL CENTRE,39107871,1531.95,S8 0SH
Department of Health,NHS Sheffield CCG,31/12/2021,C&M-PMS PCO Locum Sickness,PRC DELEGATED CO-COMMISSIONING,WOODSEATS MEDICAL CENTRE,39107871,4124.04,S8 0SH
Department of Health,NHS Sheffield CCG,31/12/2021,C&M-PMS PCO Other,PRC DELEGATED CO-COMMISSIONING,WOODSEATS MEDICAL CENTRE,39107871,654.9,S8 0SH
Department of Health,NHS Sheffield CCG,31/12/2021,C&M-PMS Prem Notional Rent,PRC DELEGATED CO-COMMISSIONING,WOODSEATS MEDICAL CENTRE,39107871,11666.67,S8 0SH
Department of Health,NHS Sheffield CCG,31/12/2021,C&M-PMS Prem Rates,PRC DELEGATED CO-COMMISSIONING,WOODSEATS MEDICAL CENTRE,39107871,2611,S8 0SH
Department of Health,NHS Sheffield CCG,31/12/2021,C&M-PMS QOF Aspiration,PRC DELEGATED CO-COMMISSIONING,WOODSEATS MEDICAL CENTRE,39107871,10133.24,S8 0SH
Department of Health,NHS Sheffield CCG,31/12/2021,C&M-PMS WEIGHT MANAGEMENT SERVICE,PRC DELEGATED CO-COMMISSIONING,WOODSEATS MEDICAL CENTRE,39107871,103.5,S8 0SH
Department of Health,NHS Sheffield CCG,31/12/2021,C&M-PMS Contract Value,PRC DELEGATED CO-COMMISSIONING,MANOR & PARK GROUP PRACTICE,39107889,73769.76,S2 5QQ
Department of Health,NHS Sheffield CCG,31/12/2021,C&M-PMS LONG COVID ES,PRC DELEGATED CO-COMMISSIONING,MANOR & PARK GROUP PRACTICE,39107889,351.25,S2 5QQ
Department of Health,NHS Sheffield CCG,31/12/2021,C&M-PMS Out of Hours Opt Outs,PRC DELEGATED CO-COMMISSIONING,MANOR & PARK GROUP PRACTICE,39107889,74.82,S2 5QQ
Department of Health,NHS Sheffield CCG,31/12/2021,C&M-PMS PCN DES Participation,PRC DELEGATED CO-COMMISSIONING,MANOR & PARK GROUP PRACTICE,39107889,1333.57,S2 5QQ
Department of Health,NHS Sheffield CCG,31/12/2021,C&M-PMS Prem Notional Rent,PRC DELEGATED CO-COMMISSIONING,MANOR & PARK GROUP PRACTICE,39107889,9112.5,S2 5QQ
Department of Health,NHS Sheffield CCG,31/12/2021,C&M-PMS QOF Aspiration,PRC DELEGATED CO-COMMISSIONING,MANOR & PARK GROUP PRACTICE,39107889,6833.28,S2 5QQ
Department of Health,NHS Sheffield CCG,31/12/2021,C&M-PMS Contract Value,PRC DELEGATED CO-COMMISSIONING,WINCOBANK MEDICAL CENTRE,39110991,66792.6,S9 1DJ
Department of Health,NHS Sheffield CCG,31/12/2021,C&M-PMS LONG COVID ES,PRC DELEGATED CO-COMMISSIONING,WINCOBANK MEDICAL CENTRE,39110991,315.76,S9 1DJ
Department of Health,NHS Sheffield CCG,31/12/2021,C&M-PMS Out of Hours Opt Outs,PRC DELEGATED CO-COMMISSIONING,WINCOBANK MEDICAL CENTRE,39110991,14.65,S9 1DJ
Department of Health,NHS Sheffield CCG,31/12/2021,C&M-PMS PCN DES Participation,PRC DELEGATED CO-COMMISSIONING,WINCOBANK MEDICAL CENTRE,39110991,1191.11,S9 1DJ
Department of Health,NHS Sheffield CCG,31/12/2021,C&M-PMS PCO Other,PRC DELEGATED CO-COMMISSIONING,WINCOBANK MEDICAL CENTRE,39110991,4878,S9 1DJ
Department of Health,NHS Sheffield CCG,31/12/2021,C&M-PMS Prem Healthcentre Rent,PRC DELEGATED CO-COMMISSIONING,WINCOBANK MEDICAL CENTRE,39110991,47262.38,S9 1DJ
Department of Health,NHS Sheffield CCG,31/12/2021,C&M-PMS Prem Rates,PRC DELEGATED CO-COMMISSIONING,WINCOBANK MEDICAL CENTRE,39110991,36022.56,S9 1DJ
Department of Health,NHS Sheffield CCG,31/12/2021,C&M-PMS QOF Aspiration,PRC DELEGATED CO-COMMISSIONING,WINCOBANK MEDICAL CENTRE,39110991,6971.47,S9 1DJ
Department of Health,NHS Sheffield CCG,31/12/2021,C&M-PMS Contract Value,PRC DELEGATED CO-COMMISSIONING,FOXHILL MEDICAL CENTRE SHEFFIELD,39110993,53906.01,S6 1GA
Department of Health,NHS Sheffield CCG,31/12/2021,C&M-PMS DES Learn Dsblty Hlth Chk,PRC DELEGATED CO-COMMISSIONING,FOXHILL MEDICAL CENTRE SHEFFIELD,39110993,420,S6 1GA
Department of Health,NHS Sheffield CCG,31/12/2021,C&M-PMS Funding Differential Review,PRC DELEGATED CO-COMMISSIONING,FOXHILL MEDICAL CENTRE SHEFFIELD,39110993,1157.94,S6 1GA
Department of Health,NHS Sheffield CCG,31/12/2021,C&M-PMS LONG COVID ES,PRC DELEGATED CO-COMMISSIONING,FOXHILL MEDICAL CENTRE SHEFFIELD,39110993,247.09,S6 1GA
Department of Health,NHS Sheffield CCG,31/12/2021,C&M-PMS Out of Hours Opt Outs,PRC DELEGATED CO-COMMISSIONING,FOXHILL MEDICAL CENTRE SHEFFIELD,39110993,31.58,S6 1GA
Department of Health,NHS Sheffield CCG,31/12/2021,C&M-PMS PCN DES Participation,PRC DELEGATED CO-COMMISSIONING,FOXHILL MEDICAL CENTRE SHEFFIELD,39110993,965.57,S6 1GA
Department of Health,NHS Sheffield CCG,31/12/2021,C&M-PMS PCO Other,PRC DELEGATED CO-COMMISSIONING,FOXHILL MEDICAL CENTRE SHEFFIELD,39110993,392.5,S6 1GA
Department of Health,NHS Sheffield CCG,31/12/2021,C&M-PMS Prem Healthcentre Rent,PRC DELEGATED CO-COMMISSIONING,FOXHILL MEDICAL CENTRE SHEFFIELD,39110993,48823.57,S6 1GA
Department of Health,NHS Sheffield CCG,31/12/2021,C&M-PMS QOF Aspiration,PRC DELEGATED CO-COMMISSIONING,FOXHILL MEDICAL CENTRE SHEFFIELD,39110993,6019.72,S6 1GA
Department of Health,NHS Sheffield CCG,31/12/2021,C&M-PMS Contract Value,PRC DELEGATED CO-COMMISSIONING,WOODHOUSE HEALTH CENTRE,39110996,104188.79,S13 7LY
Department of Health,NHS Sheffield CCG,31/12/2021,C&M-PMS DES Learn Dsblty Hlth Chk,PRC DELEGATED CO-COMMISSIONING,WOODHOUSE HEALTH CENTRE,39110996,140,S13 7LY
Department of Health,NHS Sheffield CCG,31/12/2021,C&M-PMS Funding Differential Review,PRC DELEGATED CO-COMMISSIONING,WOODHOUSE HEALTH CENTRE,39110996,2095.91,S13 7LY
Department of Health,NHS Sheffield CCG,31/12/2021,C&M-PMS LONG COVID ES,PRC DELEGATED CO-COMMISSIONING,WOODHOUSE HEALTH CENTRE,39110996,501.18,S13 7LY
Department of Health,NHS Sheffield CCG,31/12/2021,C&M-PMS Out of Hours Opt Outs,PRC DELEGATED CO-COMMISSIONING,WOODHOUSE HEALTH CENTRE,39110996,49.87,S13 7LY
Department of Health,NHS Sheffield CCG,31/12/2021,C&M-PMS PCN DES Participation,PRC DELEGATED CO-COMMISSIONING,WOODHOUSE HEALTH CENTRE,39110996,1880.78,S13 7LY
Department of Health,NHS Sheffield CCG,31/12/2021,C&M-PMS PCO Other,PRC DELEGATED CO-COMMISSIONING,WOODHOUSE HEALTH CENTRE,39110996,743.9,S13 7LY
Department of Health,NHS Sheffield CCG,31/12/2021,C&M-PMS Prem Notional Rent,PRC DELEGATED CO-COMMISSIONING,WOODHOUSE HEALTH CENTRE,39110996,32420.29,S13 7LY
Department of Health,NHS Sheffield CCG,31/12/2021,C&M-PMS Prem Rates,PRC DELEGATED CO-COMMISSIONING,WOODHOUSE HEALTH CENTRE,39110996,1459,S13 7LY
Department of Health,NHS Sheffield CCG,31/12/2021,C&M-PMS QOF Aspiration,PRC DELEGATED CO-COMMISSIONING,WOODHOUSE HEALTH CENTRE,39110996,15023.58,S13 7LY
Department of Health,NHS Sheffield CCG,31/12/2021,C&M-PMS WEIGHT MANAGEMENT SERVICE,PRC DELEGATED CO-COMMISSIONING,WOODHOUSE HEALTH CENTRE,39110996,34.5,S13 7LY
Department of Health,NHS Sheffield CCG,31/12/2021,C&M-PMS Contract Value,PRC DELEGATED CO-COMMISSIONING,GLEADLESS MEDICAL CENTRE,39110999,71125.01,S14 1PQ
Department of Health,NHS Sheffield CCG,31/12/2021,C&M-PMS Funding Differential Review,PRC DELEGATED CO-COMMISSIONING,GLEADLESS MEDICAL CENTRE,39110999,1547.97,S14 1PQ
Department of Health,NHS Sheffield CCG,31/12/2021,C&M-PMS LONG COVID ES,PRC DELEGATED CO-COMMISSIONING,GLEADLESS MEDICAL CENTRE,39110999,365.6,S14 1PQ
Department of Health,NHS Sheffield CCG,31/12/2021,C&M-PMS Out of Hours Opt Outs,PRC DELEGATED CO-COMMISSIONING,GLEADLESS MEDICAL CENTRE,39110999,89.13,S14 1PQ
Department of Health,NHS Sheffield CCG,31/12/2021,C&M-PMS PCN DES Participation,PRC DELEGATED CO-COMMISSIONING,GLEADLESS MEDICAL CENTRE,39110999,1285.55,S14 1PQ
Department of Health,NHS Sheffield CCG,31/12/2021,C&M-PMS PCO Other,PRC DELEGATED CO-COMMISSIONING,GLEADLESS MEDICAL CENTRE,39110999,556.4,S14 1PQ
Department of Health,NHS Sheffield CCG,31/12/2021,C&M-PMS Prem Notional Rent,PRC DELEGATED CO-COMMISSIONING,GLEADLESS MEDICAL CENTRE,39110999,6885.42,S14 1PQ
Department of Health,NHS Sheffield CCG,31/12/2021,C&M-PMS Prem Rates,PRC DELEGATED CO-COMMISSIONING,GLEADLESS MEDICAL CENTRE,39110999,1210,S14 1PQ
Department of Health,NHS Sheffield CCG,31/12/2021,C&M-PMS QOF Aspiration,PRC DELEGATED CO-COMMISSIONING,GLEADLESS MEDICAL CENTRE,39110999,8062.34,S14 1PQ
Department of Health,NHS Sheffield CCG,31/12/2021,C&M- PCN DES CARE COORDINATOR,PRC DELEGATED CO-COMMISSIONING,JAUNTY SPRINGS HEALTH CENTRE,39111003,3305.05,S12 3DZ
Department of Health,NHS Sheffield CCG,31/12/2021,C&M-PCN DES DIETICIANS,PRC DELEGATED CO-COMMISSIONING,JAUNTY SPRINGS HEALTH CENTRE,39111003,4609.42,S12 3DZ
Department of Health,NHS Sheffield CCG,31/12/2021,C&M-PCN DES OCCUPATIONAL THERAPISTS,PRC DELEGATED CO-COMMISSIONING,JAUNTY SPRINGS HEALTH CENTRE,39111003,3390.67,S12 3DZ
Department of Health,NHS Sheffield CCG,31/12/2021,C&M-PCN DES PHARMACY TECHNICIANS,PRC DELEGATED CO-COMMISSIONING,JAUNTY SPRINGS HEALTH CENTRE,39111003,5867.95,S12 3DZ
Department of Health,NHS Sheffield CCG,31/12/2021,C&M-PCN-PMS DES Leadership Payment,PRC DELEGATED CO-COMMISSIONING,JAUNTY SPRINGS HEALTH CENTRE,39111003,4475.67,S12 3DZ
Department of Health,NHS Sheffield CCG,31/12/2021,C&M-PMS Contract Value,PRC DELEGATED CO-COMMISSIONING,JAUNTY SPRINGS HEALTH CENTRE,39111003,32965,S12 3DZ
Department of Health,NHS Sheffield CCG,31/12/2021,C&M-PMS DES Extended Hours Access,PRC DELEGATED CO-COMMISSIONING,JAUNTY SPRINGS HEALTH CENTRE,39111003,4196.88,S12 3DZ
Department of Health,NHS Sheffield CCG,31/12/2021,C&M-PMS DES Learn Dsblty Hlth Chk,PRC DELEGATED CO-COMMISSIONING,JAUNTY SPRINGS HEALTH CENTRE,39111003,420,S12 3DZ
Department of Health,NHS Sheffield CCG,31/12/2021,C&M-PMS LONG COVID ES,PRC DELEGATED CO-COMMISSIONING,JAUNTY SPRINGS HEALTH CENTRE,39111003,157.14,S12 3DZ
Department of Health,NHS Sheffield CCG,31/12/2021,C&M-PMS Out of Hours Opt Outs,PRC DELEGATED CO-COMMISSIONING,JAUNTY SPRINGS HEALTH CENTRE,39111003,5.14,S12 3DZ
Department of Health,NHS Sheffield CCG,31/12/2021,C&M-PMS PCN DES Clin Pharmacist,PRC DELEGATED CO-COMMISSIONING,JAUNTY SPRINGS HEALTH CENTRE,39111003,9427.22,S12 3DZ
Department of Health,NHS Sheffield CCG,31/12/2021,C&M-PMS PCN DES Clinical Director,PRC DELEGATED CO-COMMISSIONING,JAUNTY SPRINGS HEALTH CENTRE,39111003,2145.07,S12 3DZ
Department of Health,NHS Sheffield CCG,31/12/2021,C&M-PMS PCN DES PCN support,LOCAL ENHANCED SERVICES,JAUNTY SPRINGS HEALTH CENTRE,39111003,4371.75,S12 3DZ
Department of Health,NHS Sheffield CCG,31/12/2021,C&M-PMS PCN DES Participation,PRC DELEGATED CO-COMMISSIONING,JAUNTY SPRINGS HEALTH CENTRE,39111003,593.33,S12 3DZ
Department of Health,NHS Sheffield CCG,31/12/2021,C&M-PMS PCN DES Physiotherapist,PRC DELEGATED CO-COMMISSIONING,JAUNTY SPRINGS HEALTH CENTRE,39111003,4776.5,S12 3DZ
Department of Health,NHS Sheffield CCG,31/12/2021,C&M-PMS PCN DES Soc Prescribing,PRC DELEGATED CO-COMMISSIONING,JAUNTY SPRINGS HEALTH CENTRE,39111003,5570.13,S12 3DZ
Department of Health,NHS Sheffield CCG,31/12/2021,C&M-PMS PCO Other,PRC DELEGATED CO-COMMISSIONING,JAUNTY SPRINGS HEALTH CENTRE,39111003,267.9,S12 3DZ
Department of Health,NHS Sheffield CCG,31/12/2021,C&M-PMS Prem Notional Rent,PRC DELEGATED CO-COMMISSIONING,JAUNTY SPRINGS HEALTH CENTRE,39111003,3208.33,S12 3DZ
Department of Health,NHS Sheffield CCG,31/12/2021,C&M-PMS Prem Rates,PRC DELEGATED CO-COMMISSIONING,JAUNTY SPRINGS HEALTH CENTRE,39111003,848,S12 3DZ
Department of Health,NHS Sheffield CCG,31/12/2021,C&M-PMS QOF Aspiration,PRC DELEGATED CO-COMMISSIONING,JAUNTY SPRINGS HEALTH CENTRE,39111003,4210.91,S12 3DZ
Department of Health,NHS Sheffield CCG,31/12/2021,C&M-PMS Contract Value,PRC DELEGATED CO-COMMISSIONING,HACKENTHORPE MEDICAL CENTRE,39111009,51630.22,S12 4LA
Department of Health,NHS Sheffield CCG,31/12/2021,C&M-PMS DES Learn Dsblty Hlth Chk,PRC DELEGATED CO-COMMISSIONING,HACKENTHORPE MEDICAL CENTRE,39111009,420,S12 4LA
Department of Health,NHS Sheffield CCG,31/12/2021,C&M-PMS LONG COVID ES,PRC DELEGATED CO-COMMISSIONING,HACKENTHORPE MEDICAL CENTRE,39111009,277.63,S12 4LA
Department of Health,NHS Sheffield CCG,31/12/2021,C&M-PMS Out of Hours Opt Outs,PRC DELEGATED CO-COMMISSIONING,HACKENTHORPE MEDICAL CENTRE,39111009,26.89,S12 4LA
Department of Health,NHS Sheffield CCG,31/12/2021,C&M-PMS PCN DES Participation,PRC DELEGATED CO-COMMISSIONING,HACKENTHORPE MEDICAL CENTRE,39111009,930.28,S12 4LA
Department of Health,NHS Sheffield CCG,31/12/2021,C&M-PMS PCO Other,PRC DELEGATED CO-COMMISSIONING,HACKENTHORPE MEDICAL CENTRE,39111009,434.8,S12 4LA
Department of Health,NHS Sheffield CCG,31/12/2021,C&M-PMS Prem Notional Rent,PRC DELEGATED CO-COMMISSIONING,HACKENTHORPE MEDICAL CENTRE,39111009,7251.94,S12 4LA
Department of Health,NHS Sheffield CCG,31/12/2021,C&M-PMS Prem Rates,PRC DELEGATED CO-COMMISSIONING,HACKENTHORPE MEDICAL CENTRE,39111009,861,S12 4LA
Department of Health,NHS Sheffield CCG,31/12/2021,C&M-PMS Prem Water Rates,PRC DELEGATED CO-COMMISSIONING,HACKENTHORPE MEDICAL CENTRE,39111009,81.78,S12 4LA
Department of Health,NHS Sheffield CCG,31/12/2021,C&M-PMS QOF Aspiration,PRC DELEGATED CO-COMMISSIONING,HACKENTHORPE MEDICAL CENTRE,39111009,7164.43,S12 4LA
Department of Health,NHS Sheffield CCG,31/12/2021,C&M-PMS WEIGHT MANAGEMENT SERVICE,PRC DELEGATED CO-COMMISSIONING,HACKENTHORPE MEDICAL CENTRE,39111009,34.5,S12 4LA
Department of Health,NHS Sheffield CCG,31/12/2021,C&M-PMS Contract Value,PRC DELEGATED CO-COMMISSIONING,MANCHESTER ROAD SURGERY SHEFFIELD,39111016,35732.27,S10 5PN
Department of Health,NHS Sheffield CCG,31/12/2021,C&M-PMS LONG COVID ES,PRC DELEGATED CO-COMMISSIONING,MANCHESTER ROAD SURGERY SHEFFIELD,39111016,201.08,S10 5PN
Department of Health,NHS Sheffield CCG,31/12/2021,C&M-PMS Out of Hours Opt Outs,PRC DELEGATED CO-COMMISSIONING,MANCHESTER ROAD SURGERY SHEFFIELD,39111016,3.31,S10 5PN
Department of Health,NHS Sheffield CCG,31/12/2021,C&M-PMS PCN DES Participation,PRC DELEGATED CO-COMMISSIONING,MANCHESTER ROAD SURGERY SHEFFIELD,39111016,637.95,S10 5PN
Department of Health,NHS Sheffield CCG,31/12/2021,C&M-PMS PCO Locum Sickness,PRC DELEGATED CO-COMMISSIONING,MANCHESTER ROAD SURGERY SHEFFIELD,39111016,2952,S10 5PN
Department of Health,NHS Sheffield CCG,31/12/2021,C&M-PMS Prem Cost Rent,PRC DELEGATED CO-COMMISSIONING,MANCHESTER ROAD SURGERY SHEFFIELD,39111016,3077.32,S10 5PN
Department of Health,NHS Sheffield CCG,31/12/2021,C&M-PMS Prem Notional Rent,PRC DELEGATED CO-COMMISSIONING,MANCHESTER ROAD SURGERY SHEFFIELD,39111016,442.92,S10 5PN
Department of Health,NHS Sheffield CCG,31/12/2021,C&M-PMS Prem Rates,PRC DELEGATED CO-COMMISSIONING,MANCHESTER ROAD SURGERY SHEFFIELD,39111016,986,S10 5PN
Department of Health,NHS Sheffield CCG,31/12/2021,C&M-PMS QOF Aspiration,PRC DELEGATED CO-COMMISSIONING,MANCHESTER ROAD SURGERY SHEFFIELD,39111016,4335.38,S10 5PN
Department of Health,NHS Sheffield CCG,31/12/2021,C&M-PMS Contract Value,PRC DELEGATED CO-COMMISSIONING,MEADOWHEAD GROUP PRACTICE,39111020,-751.85,S8 7RL
Department of Health,NHS Sheffield CCG,31/12/2021,C&M-PMS GP Statutory Levy,PRC DELEGATED CO-COMMISSIONING,MEADOWHEAD GROUP PRACTICE,39111020,-656.04,S8 7RL
Department of Health,NHS Sheffield CCG,31/12/2021,C&M-PMS Out of Hours Opt Outs,PRC DELEGATED CO-COMMISSIONING,MEADOWHEAD GROUP PRACTICE,39111020,-7789.5,S8 7RL
Department of Health,NHS Sheffield CCG,31/12/2021,C&M-PMS Prem Actual Rent,PRC DELEGATED CO-COMMISSIONING,MEADOWHEAD GROUP PRACTICE,39111020,-3358.33,S8 7RL
Department of Health,NHS Sheffield CCG,31/12/2021,C&M-PMS Prem Cost Rent,PRC DELEGATED CO-COMMISSIONING,MEADOWHEAD GROUP PRACTICE,39111020,-3647.42,S8 7RL
Department of Health,NHS Sheffield CCG,31/12/2021,C&M-PMS Prem Healthcentre Rent,PRC DELEGATED CO-COMMISSIONING,MEADOWHEAD GROUP PRACTICE,39111020,-767.14,S8 7RL
Department of Health,NHS Sheffield CCG,31/12/2021,C&M-PMS Contract Value,PRC DELEGATED CO-COMMISSIONING,NETHERGREEN SURGERY,39111024,68701.27,S11 7EJ
Department of Health,NHS Sheffield CCG,31/12/2021,C&M-PMS DES Learn Dsblty Hlth Chk,PRC DELEGATED CO-COMMISSIONING,NETHERGREEN SURGERY,39111024,140,S11 7EJ
Department of Health,NHS Sheffield CCG,31/12/2021,C&M-PMS Funding Differential Review,PRC DELEGATED CO-COMMISSIONING,NETHERGREEN SURGERY,39111024,1369.87,S11 7EJ
Department of Health,NHS Sheffield CCG,31/12/2021,C&M-PMS LONG COVID ES,PRC DELEGATED CO-COMMISSIONING,NETHERGREEN SURGERY,39111024,382.79,S11 7EJ
Department of Health,NHS Sheffield CCG,31/12/2021,C&M-PMS PCN DES Participation,PRC DELEGATED CO-COMMISSIONING,NETHERGREEN SURGERY,39111024,1216.05,S11 7EJ
Department of Health,NHS Sheffield CCG,31/12/2021,C&M-PMS Prem Cost Rent,PRC DELEGATED CO-COMMISSIONING,NETHERGREEN SURGERY,39111024,5057.33,S11 7EJ
Department of Health,NHS Sheffield CCG,31/12/2021,C&M-PMS Prem Rates,PRC DELEGATED CO-COMMISSIONING,NETHERGREEN SURGERY,39111024,1285,S11 7EJ
Department of Health,NHS Sheffield CCG,31/12/2021,C&M-PMS QOF Aspiration,PRC DELEGATED CO-COMMISSIONING,NETHERGREEN SURGERY,39111024,7008.62,S11 7EJ
Department of Health,NHS Sheffield CCG,31/12/2021,C&M-PMS Contract Value,PRC DELEGATED CO-COMMISSIONING,BARNSLEY ROAD SURGERY,39111032,21464.94,S5 0QJ
Department of Health,NHS Sheffield CCG,31/12/2021,C&M-PMS Funding Differential Review,PRC DELEGATED CO-COMMISSIONING,BARNSLEY ROAD SURGERY,39111032,506.44,S5 0QJ
Department of Health,NHS Sheffield CCG,31/12/2021,C&M-PMS LONG COVID ES,PRC DELEGATED CO-COMMISSIONING,BARNSLEY ROAD SURGERY,39111032,102.03,S5 0QJ
Department of Health,NHS Sheffield CCG,31/12/2021,C&M-PMS PCN DES Participation,PRC DELEGATED CO-COMMISSIONING,BARNSLEY ROAD SURGERY,39111032,387.62,S5 0QJ
Department of Health,NHS Sheffield CCG,31/12/2021,C&M-PMS PCO Other,PRC DELEGATED CO-COMMISSIONING,BARNSLEY ROAD SURGERY,39111032,192,S5 0QJ
Department of Health,NHS Sheffield CCG,31/12/2021,C&M-PMS Prem Notional Rent,PRC DELEGATED CO-COMMISSIONING,BARNSLEY ROAD SURGERY,39111032,2831.25,S5 0QJ
Department of Health,NHS Sheffield CCG,31/12/2021,C&M-PMS Prem Rates,PRC DELEGATED CO-COMMISSIONING,BARNSLEY ROAD SURGERY,39111032,674,S5 0QJ
Department of Health,NHS Sheffield CCG,31/12/2021,C&M-PMS QOF Aspiration,PRC DELEGATED CO-COMMISSIONING,BARNSLEY ROAD SURGERY,39111032,2443.92,S5 0QJ
Department of Health,NHS Sheffield CCG,31/12/2021,C&M-PMS Contract Value,PRC DELEGATED CO-COMMISSIONING,RUSTLINGS ROAD MEDICAL CENTRE,39111038,31169.58,S11 7AB
Department of Health,NHS Sheffield CCG,31/12/2021,C&M-PMS DES Learn Dsblty Hlth Chk,PRC DELEGATED CO-COMMISSIONING,RUSTLINGS ROAD MEDICAL CENTRE,39111038,420,S11 7AB
Department of Health,NHS Sheffield CCG,31/12/2021,C&M-PMS Funding Differential Review,PRC DELEGATED CO-COMMISSIONING,RUSTLINGS ROAD MEDICAL CENTRE,39111038,565.04,S11 7AB
Department of Health,NHS Sheffield CCG,31/12/2021,C&M-PMS LONG COVID ES,PRC DELEGATED CO-COMMISSIONING,RUSTLINGS ROAD MEDICAL CENTRE,39111038,193.13,S11 7AB
Department of Health,NHS Sheffield CCG,31/12/2021,C&M-PMS PCN DES Participation,PRC DELEGATED CO-COMMISSIONING,RUSTLINGS ROAD MEDICAL CENTRE,39111038,544.7,S11 7AB
Department of Health,NHS Sheffield CCG,31/12/2021,C&M-PMS PCO Other,PRC DELEGATED CO-COMMISSIONING,RUSTLINGS ROAD MEDICAL CENTRE,39111038,317.8,S11 7AB
Department of Health,NHS Sheffield CCG,31/12/2021,C&M-PMS Prem Notional Rent,PRC DELEGATED CO-COMMISSIONING,RUSTLINGS ROAD MEDICAL CENTRE,39111038,1341.67,S11 7AB
Department of Health,NHS Sheffield CCG,31/12/2021,C&M-PMS QOF Aspiration,PRC DELEGATED CO-COMMISSIONING,RUSTLINGS ROAD MEDICAL CENTRE,39111038,3139.32,S11 7AB
Department of Health,NHS Sheffield CCG,31/12/2021,C&M-PMS Contract Value,PRC DELEGATED CO-COMMISSIONING,RICHMOND MEDICAL CENTRE,39111041,74080.58,S13 8NA
Department of Health,NHS Sheffield CCG,31/12/2021,C&M-PMS LONG COVID ES,PRC DELEGATED CO-COMMISSIONING,RICHMOND MEDICAL CENTRE,39111041,380.03,S13 8NA
Department of Health,NHS Sheffield CCG,31/12/2021,C&M-PMS PCN DES Participation,PRC DELEGATED CO-COMMISSIONING,RICHMOND MEDICAL CENTRE,39111041,1317.91,S13 8NA
Department of Health,NHS Sheffield CCG,31/12/2021,C&M-PMS PCO Other,PRC DELEGATED CO-COMMISSIONING,RICHMOND MEDICAL CENTRE,39111041,576.4,S13 8NA
Department of Health,NHS Sheffield CCG,31/12/2021,C&M-PMS Prem Notional Rent,PRC DELEGATED CO-COMMISSIONING,RICHMOND MEDICAL CENTRE,39111041,6429.17,S13 8NA
Department of Health,NHS Sheffield CCG,31/12/2021,C&M-PMS Prem Rates,PRC DELEGATED CO-COMMISSIONING,RICHMOND MEDICAL CENTRE,39111041,1098,S13 8NA
Department of Health,NHS Sheffield CCG,31/12/2021,C&M-PMS QOF Aspiration,PRC DELEGATED CO-COMMISSIONING,RICHMOND MEDICAL CENTRE,39111041,8858.87,S13 8NA
Department of Health,NHS Sheffield CCG,31/12/2021,C&M-PMS Contract Value,PRC DELEGATED CO-COMMISSIONING,SELBORNE ROAD MEDICAL CENTRE,39111047,20344.32,S10 5ND
Department of Health,NHS Sheffield CCG,31/12/2021,C&M-PMS Funding Differential Review,PRC DELEGATED CO-COMMISSIONING,SELBORNE ROAD MEDICAL CENTRE,39111047,478.42,S10 5ND
Department of Health,NHS Sheffield CCG,31/12/2021,C&M-PMS LONG COVID ES,PRC DELEGATED CO-COMMISSIONING,SELBORNE ROAD MEDICAL CENTRE,39111047,108.13,S10 5ND
Department of Health,NHS Sheffield CCG,31/12/2021,C&M-PMS Out of Hours Opt Outs,PRC DELEGATED CO-COMMISSIONING,SELBORNE ROAD MEDICAL CENTRE,39111047,8.8,S10 5ND
Department of Health,NHS Sheffield CCG,31/12/2021,C&M-PMS PCN DES Participation,PRC DELEGATED CO-COMMISSIONING,SELBORNE ROAD MEDICAL CENTRE,39111047,363.66,S10 5ND
Department of Health,NHS Sheffield CCG,31/12/2021,C&M-PMS PCO Other,PRC DELEGATED CO-COMMISSIONING,SELBORNE ROAD MEDICAL CENTRE,39111047,200.5,S10 5ND
Department of Health,NHS Sheffield CCG,31/12/2021,C&M-PMS Prem Notional Rent,PRC DELEGATED CO-COMMISSIONING,SELBORNE ROAD MEDICAL CENTRE,39111047,1735.42,S10 5ND
Department of Health,NHS Sheffield CCG,31/12/2021,C&M-PMS Prem Rates,PRC DELEGATED CO-COMMISSIONING,SELBORNE ROAD MEDICAL CENTRE,39111047,611,S10 5ND
Department of Health,NHS Sheffield CCG,31/12/2021,C&M-PMS QOF Aspiration,PRC DELEGATED CO-COMMISSIONING,SELBORNE ROAD MEDICAL CENTRE,39111047,2229.73,S10 5ND
Department of Health,NHS Sheffield CCG,31/12/2021,C&M-PCN-PMS DES Leadership Payment,PRC DELEGATED CO-COMMISSIONING,FORGE HEALTH GROUP,39111054,7538.67,S3 9DL
Department of Health,NHS Sheffield CCG,31/12/2021,C&M-PMS Contract Value,PRC DELEGATED CO-COMMISSIONING,FORGE HEALTH GROUP,39111054,129487.87,S3 9DL
Department of Health,NHS Sheffield CCG,31/12/2021,C&M-PMS DES Extended Hours Access,PRC DELEGATED CO-COMMISSIONING,FORGE HEALTH GROUP,39111054,6820.92,S3 9DL
Department of Health,NHS Sheffield CCG,31/12/2021,C&M-PMS DES Learn Dsblty Hlth Chk,PRC DELEGATED CO-COMMISSIONING,FORGE HEALTH GROUP,39111054,2100,S3 9DL
Department of Health,NHS Sheffield CCG,31/12/2021,C&M-PMS LONG COVID ES,PRC DELEGATED CO-COMMISSIONING,FORGE HEALTH GROUP,39111054,608.56,S3 9DL
Department of Health,NHS Sheffield CCG,31/12/2021,C&M-PMS PCN DES Clinical Director,PRC DELEGATED CO-COMMISSIONING,FORGE HEALTH GROUP,39111054,3486.25,S3 9DL
Department of Health,NHS Sheffield CCG,31/12/2021,C&M-PMS PCN DES PCN support,LOCAL ENHANCED SERVICES,FORGE HEALTH GROUP,39111054,7105.13,S3 9DL
Department of Health,NHS Sheffield CCG,31/12/2021,C&M-PMS PCN DES Participation,PRC DELEGATED CO-COMMISSIONING,FORGE HEALTH GROUP,39111054,2294.59,S3 9DL
Department of Health,NHS Sheffield CCG,31/12/2021,C&M-PMS Prem Healthcentre Rent,PRC DELEGATED CO-COMMISSIONING,FORGE HEALTH GROUP,39111054,35542.67,S3 9DL
Department of Health,NHS Sheffield CCG,31/12/2021,C&M-PMS Prem Notional Rent,PRC DELEGATED CO-COMMISSIONING,FORGE HEALTH GROUP,39111054,9891.67,S3 9DL
Department of Health,NHS Sheffield CCG,31/12/2021,C&M-PMS QOF Aspiration,PRC DELEGATED CO-COMMISSIONING,FORGE HEALTH GROUP,39111054,12932.51,S3 9DL
Department of Health,NHS Sheffield CCG,31/12/2021,C&M-PMS Contract Value,PRC DELEGATED CO-COMMISSIONING,FORGE HEALTH GROUP,39111057,-650.39,S3 9DL
Department of Health,NHS Sheffield CCG,31/12/2021,C&M-PMS GP Statutory Levy,PRC DELEGATED CO-COMMISSIONING,FORGE HEALTH GROUP,39111057,-529.8,S3 9DL
Department of Health,NHS Sheffield CCG,31/12/2021,C&M-PMS Out of Hours Opt Outs,PRC DELEGATED CO-COMMISSIONING,FORGE HEALTH GROUP,39111057,-6087.93,S3 9DL
Department of Health,NHS Sheffield CCG,31/12/2021,C&M-PMS Contract Value,PRC DELEGATED CO-COMMISSIONING,PORTER BROOK MEDICAL CENTRE,39111060,173319.08,S11 8HN
Department of Health,NHS Sheffield CCG,31/12/2021,C&M-PMS DES Learn Dsblty Hlth Chk,PRC DELEGATED CO-COMMISSIONING,PORTER BROOK MEDICAL CENTRE,39111060,700,S11 8HN
Department of Health,NHS Sheffield CCG,31/12/2021,C&M-PMS Funding Differential Review,PRC DELEGATED CO-COMMISSIONING,PORTER BROOK MEDICAL CENTRE,39111060,3636.27,S11 8HN
Department of Health,NHS Sheffield CCG,31/12/2021,C&M-PMS LONG COVID ES,PRC DELEGATED CO-COMMISSIONING,PORTER BROOK MEDICAL CENTRE,39111060,1189.1,S11 8HN
Department of Health,NHS Sheffield CCG,31/12/2021,C&M-PMS Out of Hours Opt Outs,PRC DELEGATED CO-COMMISSIONING,PORTER BROOK MEDICAL CENTRE,39111060,147.99,S11 8HN
Department of Health,NHS Sheffield CCG,31/12/2021,C&M-PMS PCN DES Participation,PRC DELEGATED CO-COMMISSIONING,PORTER BROOK MEDICAL CENTRE,39111060,3019.37,S11 8HN
Department of Health,NHS Sheffield CCG,31/12/2021,C&M-PMS PCO Other,PRC DELEGATED CO-COMMISSIONING,PORTER BROOK MEDICAL CENTRE,39111060,1695.4,S11 8HN
Department of Health,NHS Sheffield CCG,31/12/2021,C&M-PMS Prem Actual Rent,PRC DELEGATED CO-COMMISSIONING,PORTER BROOK MEDICAL CENTRE,39111060,1666.67,S11 8HN
Department of Health,NHS Sheffield CCG,31/12/2021,C&M-PMS Prem Notional Rent,PRC DELEGATED CO-COMMISSIONING,PORTER BROOK MEDICAL CENTRE,39111060,11600.01,S11 8HN
Department of Health,NHS Sheffield CCG,31/12/2021,C&M-PMS Prem Rates,PRC DELEGATED CO-COMMISSIONING,PORTER BROOK MEDICAL CENTRE,39111060,1812,S11 8HN
Department of Health,NHS Sheffield CCG,31/12/2021,C&M-PMS Prem Water Rates,PRC DELEGATED CO-COMMISSIONING,PORTER BROOK MEDICAL CENTRE,39111060,343.82,S11 8HN
Department of Health,NHS Sheffield CCG,31/12/2021,C&M-PMS QOF Aspiration,PRC DELEGATED CO-COMMISSIONING,PORTER BROOK MEDICAL CENTRE,39111060,11138.7,S11 8HN
Department of Health,NHS Sheffield CCG,31/12/2021,C&M-PMS Contract Value,PRC DELEGATED CO-COMMISSIONING,PORTER BROOK MEDICAL CENTRE,39111062,-4011.43,S11 8HN
Department of Health,NHS Sheffield CCG,31/12/2021,C&M-PMS GP Statutory Levy,PRC DELEGATED CO-COMMISSIONING,PORTER BROOK MEDICAL CENTRE,39111062,-997.61,S11 8HN
Department of Health,NHS Sheffield CCG,31/12/2021,C&M-PMS Out of Hours Opt Outs,PRC DELEGATED CO-COMMISSIONING,PORTER BROOK MEDICAL CENTRE,39111062,-8136.91,S11 8HN
Department of Health,NHS Sheffield CCG,31/12/2021,C&M-PMS Prem Notional Rent,PRC DELEGATED CO-COMMISSIONING,PORTER BROOK MEDICAL CENTRE,39111062,-1666.67,S11 8HN
Department of Health,NHS Sheffield CCG,31/12/2021,C&M-PMS Contract Value,PRC DELEGATED CO-COMMISSIONING,PAGE HALL MEDICAL CENTRE,39111065,61402.14,S4 8GB
Department of Health,NHS Sheffield CCG,31/12/2021,C&M-PMS DES Learn Dsblty Hlth Chk,PRC DELEGATED CO-COMMISSIONING,PAGE HALL MEDICAL CENTRE,39111065,560,S4 8GB
Department of Health,NHS Sheffield CCG,31/12/2021,C&M-PMS Funding Differential Review,PRC DELEGATED CO-COMMISSIONING,PAGE HALL MEDICAL CENTRE,39111065,1161.37,S4 8GB
Department of Health,NHS Sheffield CCG,31/12/2021,C&M-PMS LONG COVID ES,PRC DELEGATED CO-COMMISSIONING,PAGE HALL MEDICAL CENTRE,39111065,328.42,S4 8GB
Department of Health,NHS Sheffield CCG,31/12/2021,C&M-PMS Out of Hours Opt Outs,PRC DELEGATED CO-COMMISSIONING,PAGE HALL MEDICAL CENTRE,39111065,18.53,S4 8GB
Department of Health,NHS Sheffield CCG,31/12/2021,C&M-PMS PCN DES Participation,PRC DELEGATED CO-COMMISSIONING,PAGE HALL MEDICAL CENTRE,39111065,1099.51,S4 8GB
Department of Health,NHS Sheffield CCG,31/12/2021,C&M-PMS PCO Other,PRC DELEGATED CO-COMMISSIONING,PAGE HALL MEDICAL CENTRE,39111065,504.9,S4 8GB
Department of Health,NHS Sheffield CCG,31/12/2021,C&M-PMS Prem Notional Rent,PRC DELEGATED CO-COMMISSIONING,PAGE HALL MEDICAL CENTRE,39111065,4833.33,S4 8GB
Department of Health,NHS Sheffield CCG,31/12/2021,C&M-PMS Prem Rates,PRC DELEGATED CO-COMMISSIONING,PAGE HALL MEDICAL CENTRE,39111065,848,S4 8GB
Department of Health,NHS Sheffield CCG,31/12/2021,C&M-PMS QOF Aspiration,PRC DELEGATED CO-COMMISSIONING,PAGE HALL MEDICAL CENTRE,39111065,5333.21,S4 8GB
Department of Health,NHS Sheffield CCG,31/12/2021,C&M-PMS WEIGHT MANAGEMENT SERVICE,PRC DELEGATED CO-COMMISSIONING,PAGE HALL MEDICAL CENTRE,39111065,69,S4 8GB
Department of Health,NHS Sheffield CCG,31/12/2021,C&M-PMS Contract Value,PRC DELEGATED CO-COMMISSIONING,BURNGREAVE SURGERY,39111075,60317.12,S3 9DA
Department of Health,NHS Sheffield CCG,31/12/2021,C&M-PMS DES Learn Dsblty Hlth Chk,PRC DELEGATED CO-COMMISSIONING,BURNGREAVE SURGERY,39111075,840,S3 9DA
Department of Health,NHS Sheffield CCG,31/12/2021,C&M-PMS LONG COVID ES,PRC DELEGATED CO-COMMISSIONING,BURNGREAVE SURGERY,39111075,284.06,S3 9DA
Department of Health,NHS Sheffield CCG,31/12/2021,C&M-PMS Out of Hours Opt Outs,PRC DELEGATED CO-COMMISSIONING,BURNGREAVE SURGERY,39111075,23.69,S3 9DA
Department of Health,NHS Sheffield CCG,31/12/2021,C&M-PMS PCN DES Participation,PRC DELEGATED CO-COMMISSIONING,BURNGREAVE SURGERY,39111075,1072.06,S3 9DA
Department of Health,NHS Sheffield CCG,31/12/2021,C&M-PMS Prem Notional Rent,PRC DELEGATED CO-COMMISSIONING,BURNGREAVE SURGERY,39111075,6622.92,S3 9DA
Department of Health,NHS Sheffield CCG,31/12/2021,C&M-PMS Prem Rates,PRC DELEGATED CO-COMMISSIONING,BURNGREAVE SURGERY,39111075,2340,S3 9DA
Department of Health,NHS Sheffield CCG,31/12/2021,C&M-PMS Prem Water Rates,PRC DELEGATED CO-COMMISSIONING,BURNGREAVE SURGERY,39111075,286.27,S3 9DA
Department of Health,NHS Sheffield CCG,31/12/2021,C&M-PMS QOF Aspiration,PRC DELEGATED CO-COMMISSIONING,BURNGREAVE SURGERY,39111075,5671.9,S3 9DA
Department of Health,NHS Sheffield CCG,31/12/2021,C&M-PMS Contract Value,PRC DELEGATED CO-COMMISSIONING,BURNCROSS SURGERY,39111079,127123.64,S35 1RN
Department of Health,NHS Sheffield CCG,31/12/2021,C&M-PMS DES Learn Dsblty Hlth Chk,PRC DELEGATED CO-COMMISSIONING,BURNCROSS SURGERY,39111079,1260,S35 1RN
Department of Health,NHS Sheffield CCG,31/12/2021,C&M-PMS Funding Differential Review,PRC DELEGATED CO-COMMISSIONING,BURNCROSS SURGERY,39111079,2746.32,S35 1RN
Department of Health,NHS Sheffield CCG,31/12/2021,C&M-PMS LONG COVID ES,PRC DELEGATED CO-COMMISSIONING,BURNCROSS SURGERY,39111079,618.33,S35 1RN
Department of Health,NHS Sheffield CCG,31/12/2021,C&M-PMS PCN DES Participation,PRC DELEGATED CO-COMMISSIONING,BURNCROSS SURGERY,39111079,2296.43,S35 1RN
Department of Health,NHS Sheffield CCG,31/12/2021,C&M-PMS Prem Notional Rent,PRC DELEGATED CO-COMMISSIONING,BURNCROSS SURGERY,39111079,14919.67,S35 1RN
Department of Health,NHS Sheffield CCG,31/12/2021,C&M-PMS QOF Aspiration,PRC DELEGATED CO-COMMISSIONING,BURNCROSS SURGERY,39111079,16606.07,S35 1RN
Department of Health,NHS Sheffield CCG,31/12/2021,C&M-PMS WEIGHT MANAGEMENT SERVICE,PRC DELEGATED CO-COMMISSIONING,BURNCROSS SURGERY,39111079,414,S35 1RN
Department of Health,NHS Sheffield CCG,31/12/2021,C&M-APMS Contract Value,PRC DELEGATED CO-COMMISSIONING,CLOVER GROUP PRACTICE,39111083,126839.56,S9 4QH
Department of Health,NHS Sheffield CCG,31/12/2021,C&M-APMS DES Learn Dsblty Hlth Chk,PRC DELEGATED CO-COMMISSIONING,CLOVER GROUP PRACTICE,39111083,140,S9 4QH
Department of Health,NHS Sheffield CCG,31/12/2021,C&M-APMS LONG COVID ES,PRC DELEGATED CO-COMMISSIONING,CLOVER GROUP PRACTICE,39111083,620.35,S9 4QH
Department of Health,NHS Sheffield CCG,31/12/2021,C&M-APMS OOH Opt Outs,PRC DELEGATED CO-COMMISSIONING,CLOVER GROUP PRACTICE,39111083,692.85,S9 4QH
Department of Health,NHS Sheffield CCG,31/12/2021,C&M-APMS PCN DES Participation,PRC DELEGATED CO-COMMISSIONING,CLOVER GROUP PRACTICE,39111083,2290.04,S9 4QH
Department of Health,NHS Sheffield CCG,31/12/2021,C&M-APMS Prem Actual Rent,PRC DELEGATED CO-COMMISSIONING,CLOVER GROUP PRACTICE,39111083,5169.68,S9 4QH
Department of Health,NHS Sheffield CCG,31/12/2021,C&M-APMS Prem Healthcentre Rent,PRC DELEGATED CO-COMMISSIONING,CLOVER GROUP PRACTICE,39111083,51020.3,S9 4QH
Department of Health,NHS Sheffield CCG,31/12/2021,C&M-APMS Prem Notional Rent,PRC DELEGATED CO-COMMISSIONING,CLOVER GROUP PRACTICE,39111083,2804.17,S9 4QH
Department of Health,NHS Sheffield CCG,31/12/2021,C&M-APMS QOF Aspiration,PRC DELEGATED CO-COMMISSIONING,CLOVER GROUP PRACTICE,39111083,9965.6,S9 4QH
Department of Health,NHS Sheffield CCG,31/12/2021,C&M-APMS WEIGHT MANAGEMENT SERVICE,PRC DELEGATED CO-COMMISSIONING,CLOVER GROUP PRACTICE,39111083,46,S9 4QH
Department of Health,NHS Sheffield CCG,31/12/2021,C&M-PMS Contract Value,PRC DELEGATED CO-COMMISSIONING,BIRLEY HEALTH CENTRE,39111085,68411.49,S12 3BP
Department of Health,NHS Sheffield CCG,31/12/2021,C&M-PMS DES Learn Dsblty Hlth Chk,PRC DELEGATED CO-COMMISSIONING,BIRLEY HEALTH CENTRE,39111085,280,S12 3BP
Department of Health,NHS Sheffield CCG,31/12/2021,C&M-PMS LONG COVID ES,PRC DELEGATED CO-COMMISSIONING,BIRLEY HEALTH CENTRE,39111085,353.32,S12 3BP
Department of Health,NHS Sheffield CCG,31/12/2021,C&M-PMS PCN DES Participation,PRC DELEGATED CO-COMMISSIONING,BIRLEY HEALTH CENTRE,39111085,1224.59,S12 3BP
Department of Health,NHS Sheffield CCG,31/12/2021,C&M-PMS Prem Notional Rent,PRC DELEGATED CO-COMMISSIONING,BIRLEY HEALTH CENTRE,39111085,7600.58,S12 3BP
Department of Health,NHS Sheffield CCG,31/12/2021,C&M-PMS Prem Rates,PRC DELEGATED CO-COMMISSIONING,BIRLEY HEALTH CENTRE,39111085,895,S12 3BP
Department of Health,NHS Sheffield CCG,31/12/2021,C&M-PMS QOF Aspiration,PRC DELEGATED CO-COMMISSIONING,BIRLEY HEALTH CENTRE,39111085,8434.07,S12 3BP
Department of Health,NHS Sheffield CCG,31/12/2021,C&M-PMS Contract Value,PRC DELEGATED CO-COMMISSIONING,SLOAN MEDICAL CENTRE,39111087,103402.46,S8 0YH
Department of Health,NHS Sheffield CCG,31/12/2021,C&M-PMS DES Learn Dsblty Hlth Chk,PRC DELEGATED CO-COMMISSIONING,SLOAN MEDICAL CENTRE,39111087,3780,S8 0YH
Department of Health,NHS Sheffield CCG,31/12/2021,C&M-PMS LONG COVID ES,PRC DELEGATED CO-COMMISSIONING,SLOAN MEDICAL CENTRE,39111087,556.21,S8 0YH
Department of Health,NHS Sheffield CCG,31/12/2021,C&M-PMS Out of Hours Opt Outs,PRC DELEGATED CO-COMMISSIONING,SLOAN MEDICAL CENTRE,39111087,5.59,S8 0YH
Department of Health,NHS Sheffield CCG,31/12/2021,C&M-PMS PCN DES Participation,PRC DELEGATED CO-COMMISSIONING,SLOAN MEDICAL CENTRE,39111087,1849.06,S8 0YH
Department of Health,NHS Sheffield CCG,31/12/2021,C&M-PMS PCO Locum Sickness,PRC DELEGATED CO-COMMISSIONING,SLOAN MEDICAL CENTRE,39111087,21720.2,S8 0YH
Department of Health,NHS Sheffield CCG,31/12/2021,C&M-PMS PCO Other,PRC DELEGATED CO-COMMISSIONING,SLOAN MEDICAL CENTRE,39111087,819.8,S8 0YH
Department of Health,NHS Sheffield CCG,31/12/2021,C&M-PMS Prem Notional Rent,PRC DELEGATED CO-COMMISSIONING,SLOAN MEDICAL CENTRE,39111087,747.5,S8 0YH
Department of Health,NHS Sheffield CCG,31/12/2021,C&M-PMS Prem Water Rates,PRC DELEGATED CO-COMMISSIONING,SLOAN MEDICAL CENTRE,39111087,94.34,S8 0YH
Department of Health,NHS Sheffield CCG,31/12/2021,C&M-PMS QOF Aspiration,PRC DELEGATED CO-COMMISSIONING,SLOAN MEDICAL CENTRE,39111087,11094.95,S8 0YH
Department of Health,NHS Sheffield CCG,31/12/2021,C&M-PMS WEIGHT MANAGEMENT SERVICE,PRC DELEGATED CO-COMMISSIONING,SLOAN MEDICAL CENTRE,39111087,11.5,S8 0YH
Department of Health,NHS Sheffield CCG,31/12/2021,C&M-PMS Contract Value,PRC DELEGATED CO-COMMISSIONING,SOTHALL MEDICAL CENTRE,39111089,75689.4,S20 1HQ
Department of Health,NHS Sheffield CCG,31/12/2021,C&M-PMS DES Learn Dsblty Hlth Chk,PRC DELEGATED CO-COMMISSIONING,SOTHALL MEDICAL CENTRE,39111089,700,S20 1HQ
Department of Health,NHS Sheffield CCG,31/12/2021,C&M-PMS LONG COVID ES,PRC DELEGATED CO-COMMISSIONING,SOTHALL MEDICAL CENTRE,39111089,416.01,S20 1HQ
Department of Health,NHS Sheffield CCG,31/12/2021,C&M-PMS Out of Hours Opt Outs,PRC DELEGATED CO-COMMISSIONING,SOTHALL MEDICAL CENTRE,39111089,42.51,S20 1HQ
Department of Health,NHS Sheffield CCG,31/12/2021,C&M-PMS PCN DES Participation,PRC DELEGATED CO-COMMISSIONING,SOTHALL MEDICAL CENTRE,39111089,1370.05,S20 1HQ
Department of Health,NHS Sheffield CCG,31/12/2021,C&M-PMS PCO Other,PRC DELEGATED CO-COMMISSIONING,SOTHALL MEDICAL CENTRE,39111089,626.1,S20 1HQ
Department of Health,NHS Sheffield CCG,31/12/2021,C&M-PMS Prem Notional Rent,PRC DELEGATED CO-COMMISSIONING,SOTHALL MEDICAL CENTRE,39111089,5237.5,S20 1HQ
Department of Health,NHS Sheffield CCG,31/12/2021,C&M-PMS Prem Rates,PRC DELEGATED CO-COMMISSIONING,SOTHALL MEDICAL CENTRE,39111089,617,S20 1HQ
Department of Health,NHS Sheffield CCG,31/12/2021,C&M-PMS QOF Aspiration,PRC DELEGATED CO-COMMISSIONING,SOTHALL MEDICAL CENTRE,39111089,9478.91,S20 1HQ
Department of Health,NHS Sheffield CCG,31/12/2021,C&M-PMS WEIGHT MANAGEMENT SERVICE,PRC DELEGATED CO-COMMISSIONING,SOTHALL MEDICAL CENTRE,39111089,230,S20 1HQ
Department of Health,NHS Sheffield CCG,31/12/2021,C&M-PMS Contract Value,PRC DELEGATED CO-COMMISSIONING,SOUTHEY GREEN MEDICAL CENTRE,39111091,26049.77,S5 7QB
Department of Health,NHS Sheffield CCG,31/12/2021,C&M-PMS Funding Differential Review,PRC DELEGATED CO-COMMISSIONING,SOUTHEY GREEN MEDICAL CENTRE,39111091,612.28,S5 7QB
Department of Health,NHS Sheffield CCG,31/12/2021,C&M-PMS LONG COVID ES,PRC DELEGATED CO-COMMISSIONING,SOUTHEY GREEN MEDICAL CENTRE,39111091,119.17,S5 7QB
Department of Health,NHS Sheffield CCG,31/12/2021,C&M-PMS Out of Hours Opt Outs,PRC DELEGATED CO-COMMISSIONING,SOUTHEY GREEN MEDICAL CENTRE,39111091,42.12,S5 7QB
Department of Health,NHS Sheffield CCG,31/12/2021,C&M-PMS PCN DES Participation,PRC DELEGATED CO-COMMISSIONING,SOUTHEY GREEN MEDICAL CENTRE,39111091,470.48,S5 7QB
Department of Health,NHS Sheffield CCG,31/12/2021,C&M-PMS Prem Notional Rent,PRC DELEGATED CO-COMMISSIONING,SOUTHEY GREEN MEDICAL CENTRE,39111091,3362.5,S5 7QB
Department of Health,NHS Sheffield CCG,31/12/2021,C&M-PMS QOF Aspiration,PRC DELEGATED CO-COMMISSIONING,SOUTHEY GREEN MEDICAL CENTRE,39111091,2952.99,S5 7QB
Department of Health,NHS Sheffield CCG,31/12/2021,C&M-PMS Contract Value,PRC DELEGATED CO-COMMISSIONING,GREEN CROSS GROUP PRACTICE,39111093,65408.63,S5 0AE
Department of Health,NHS Sheffield CCG,31/12/2021,C&M-PMS Funding Differential Review,PRC DELEGATED CO-COMMISSIONING,GREEN CROSS GROUP PRACTICE,39111093,506.77,S5 0AE
Department of Health,NHS Sheffield CCG,31/12/2021,C&M-PMS LONG COVID ES,PRC DELEGATED CO-COMMISSIONING,GREEN CROSS GROUP PRACTICE,39111093,322.32,S5 0AE
Department of Health,NHS Sheffield CCG,31/12/2021,C&M-PMS PCN DES Participation,PRC DELEGATED CO-COMMISSIONING,GREEN CROSS GROUP PRACTICE,39111093,798.5,S5 0AE
Department of Health,NHS Sheffield CCG,31/12/2021,C&M-PMS PCO Other,PRC DELEGATED CO-COMMISSIONING,GREEN CROSS GROUP PRACTICE,39111093,547.3,S5 0AE
Department of Health,NHS Sheffield CCG,31/12/2021,C&M-PMS Prem Notional Rent,PRC DELEGATED CO-COMMISSIONING,GREEN CROSS GROUP PRACTICE,39111093,5558.33,S5 0AE
Department of Health,NHS Sheffield CCG,31/12/2021,C&M-PMS QOF Aspiration,PRC DELEGATED CO-COMMISSIONING,GREEN CROSS GROUP PRACTICE,39111093,6643.07,S5 0AE
Department of Health,NHS Sheffield CCG,31/12/2021,C&M- PCN DES Nursing Associate,PRC DELEGATED CO-COMMISSIONING,DYKES HALL MEDICAL CENTRE,39111095,4699.53,S6 4GQ
Department of Health,NHS Sheffield CCG,31/12/2021,C&M-PCN DES PHARMACY TECHNICIANS,PRC DELEGATED CO-COMMISSIONING,DYKES HALL MEDICAL CENTRE,39111095,3035.67,S6 4GQ
Department of Health,NHS Sheffield CCG,31/12/2021,C&M-PCN DES Trainee Nursing Associate,PRC DELEGATED CO-COMMISSIONING,DYKES HALL MEDICAL CENTRE,39111095,1807.78,S6 4GQ
Department of Health,NHS Sheffield CCG,31/12/2021,C&M-PCN-PMS DES Leadership Payment,PRC DELEGATED CO-COMMISSIONING,DYKES HALL MEDICAL CENTRE,39111095,4050.67,S6 4GQ
Department of Health,NHS Sheffield CCG,31/12/2021,C&M-PMS Contract Value,PRC DELEGATED CO-COMMISSIONING,DYKES HALL MEDICAL CENTRE,39111095,74345.31,S6 4GQ
Department of Health,NHS Sheffield CCG,31/12/2021,C&M-PMS DES Extended Hours Access,PRC DELEGATED CO-COMMISSIONING,DYKES HALL MEDICAL CENTRE,39111095,4281.12,S6 4GQ
Department of Health,NHS Sheffield CCG,31/12/2021,C&M-PMS DES Learn Dsblty Hlth Chk,PRC DELEGATED CO-COMMISSIONING,DYKES HALL MEDICAL CENTRE,39111095,420,S6 4GQ
Department of Health,NHS Sheffield CCG,31/12/2021,C&M-PMS Funding Differential Review,PRC DELEGATED CO-COMMISSIONING,DYKES HALL MEDICAL CENTRE,39111095,1473.36,S6 4GQ
Department of Health,NHS Sheffield CCG,31/12/2021,C&M-PMS LONG COVID ES,PRC DELEGATED CO-COMMISSIONING,DYKES HALL MEDICAL CENTRE,39111095,389.34,S6 4GQ
Department of Health,NHS Sheffield CCG,31/12/2021,C&M-PMS Out of Hours Opt Outs,PRC DELEGATED CO-COMMISSIONING,DYKES HALL MEDICAL CENTRE,39111095,72.32,S6 4GQ
Department of Health,NHS Sheffield CCG,31/12/2021,C&M-PMS PCN DES Clin Pharmacist,PRC DELEGATED CO-COMMISSIONING,DYKES HALL MEDICAL CENTRE,39111095,15672.44,S6 4GQ
Department of Health,NHS Sheffield CCG,31/12/2021,C&M-PMS PCN DES Clinical Director,PRC DELEGATED CO-COMMISSIONING,DYKES HALL MEDICAL CENTRE,39111095,2188.13,S6 4GQ
Department of Health,NHS Sheffield CCG,31/12/2021,C&M-PMS PCN DES PCN support,LOCAL ENHANCED SERVICES,DYKES HALL MEDICAL CENTRE,39111095,4459.5,S6 4GQ
Department of Health,NHS Sheffield CCG,31/12/2021,C&M-PMS PCN DES Participation,PRC DELEGATED CO-COMMISSIONING,DYKES HALL MEDICAL CENTRE,39111095,1345.01,S6 4GQ
Department of Health,NHS Sheffield CCG,31/12/2021,C&M-PMS PCN DES Physiotherapist,PRC DELEGATED CO-COMMISSIONING,DYKES HALL MEDICAL CENTRE,39111095,6494.84,S6 4GQ
Department of Health,NHS Sheffield CCG,31/12/2021,C&M-PMS PCN DES Soc Prescribing,PRC DELEGATED CO-COMMISSIONING,DYKES HALL MEDICAL CENTRE,39111095,2949,S6 4GQ
Department of Health,NHS Sheffield CCG,31/12/2021,C&M-PMS Prem Notional Rent,PRC DELEGATED CO-COMMISSIONING,DYKES HALL MEDICAL CENTRE,39111095,5527.08,S6 4GQ
Department of Health,NHS Sheffield CCG,31/12/2021,C&M-PMS Prem Rates,PRC DELEGATED CO-COMMISSIONING,DYKES HALL MEDICAL CENTRE,39111095,910,S6 4GQ
Department of Health,NHS Sheffield CCG,31/12/2021,C&M-PMS QOF Aspiration,PRC DELEGATED CO-COMMISSIONING,DYKES HALL MEDICAL CENTRE,39111095,9390.15,S6 4GQ
Department of Health,NHS Sheffield CCG,31/12/2021,C&M-PMS WEIGHT MANAGEMENT SERVICE,PRC DELEGATED CO-COMMISSIONING,DYKES HALL MEDICAL CENTRE,39111095,69,S6 4GQ
Department of Health,NHS Sheffield CCG,31/12/2021,C&M-PMS Contract Value,PRC DELEGATED CO-COMMISSIONING,EAST BANK MEDICAL CENTRE,39111097,53203.36,S2 2AG
Department of Health,NHS Sheffield CCG,31/12/2021,C&M-PMS DES Learn Dsblty Hlth Chk,PRC DELEGATED CO-COMMISSIONING,EAST BANK MEDICAL CENTRE,39111097,840,S2 2AG
Department of Health,NHS Sheffield CCG,31/12/2021,C&M-PMS LONG COVID ES,PRC DELEGATED CO-COMMISSIONING,EAST BANK MEDICAL CENTRE,39111097,252.65,S2 2AG
Department of Health,NHS Sheffield CCG,31/12/2021,C&M-PMS PCN DES Participation,PRC DELEGATED CO-COMMISSIONING,EAST BANK MEDICAL CENTRE,39111097,945.64,S2 2AG
Department of Health,NHS Sheffield CCG,31/12/2021,C&M-PMS Prem Notional Rent,PRC DELEGATED CO-COMMISSIONING,EAST BANK MEDICAL CENTRE,39111097,10583.33,S2 2AG
Department of Health,NHS Sheffield CCG,31/12/2021,C&M-PMS Prem Rates,PRC DELEGATED CO-COMMISSIONING,EAST BANK MEDICAL CENTRE,39111097,2065,S2 2AG
Department of Health,NHS Sheffield CCG,31/12/2021,C&M-PMS QOF Aspiration,PRC DELEGATED CO-COMMISSIONING,EAST BANK MEDICAL CENTRE,39111097,5744.23,S2 2AG
Department of Health,NHS Sheffield CCG,31/12/2021,C&M-PMS WEIGHT MANAGEMENT SERVICE,PRC DELEGATED CO-COMMISSIONING,EAST BANK MEDICAL CENTRE,39111097,69,S2 2AG
Department of Health,NHS Sheffield CCG,31/12/2021,C&M-PMS Contract Value,PRC DELEGATED CO-COMMISSIONING,DR MEHROTRA & PARTNER,39111099,26303.18,S9 5DH
Department of Health,NHS Sheffield CCG,31/12/2021,C&M-PMS DES Learn Dsblty Hlth Chk,PRC DELEGATED CO-COMMISSIONING,DR MEHROTRA & PARTNER,39111099,1540,S9 5DH
Department of Health,NHS Sheffield CCG,31/12/2021,C&M-PMS Funding Differential Review,PRC DELEGATED CO-COMMISSIONING,DR MEHROTRA & PARTNER,39111099,520.47,S9 5DH
Department of Health,NHS Sheffield CCG,31/12/2021,C&M-PMS LONG COVID ES,PRC DELEGATED CO-COMMISSIONING,DR MEHROTRA & PARTNER,39111099,125.56,S9 5DH
Department of Health,NHS Sheffield CCG,31/12/2021,C&M-PMS PCN DES Participation,PRC DELEGATED CO-COMMISSIONING,DR MEHROTRA & PARTNER,39111099,457.08,S9 5DH
Department of Health,NHS Sheffield CCG,31/12/2021,C&M-PMS Prem Notional Rent,PRC DELEGATED CO-COMMISSIONING,DR MEHROTRA & PARTNER,39111099,5157.29,S9 5DH
Department of Health,NHS Sheffield CCG,31/12/2021,C&M-PMS QOF Aspiration,PRC DELEGATED CO-COMMISSIONING,DR MEHROTRA & PARTNER,39111099,2925.04,S9 5DH
Department of Health,NHS Sheffield CCG,31/12/2021,C&M-PMS WEIGHT MANAGEMENT SERVICE,PRC DELEGATED CO-COMMISSIONING,DR MEHROTRA & PARTNER,39111099,126.5,S9 5DH
Department of Health,NHS Sheffield CCG,31/12/2021,C&M-PMS Contract Value,PRC DELEGATED CO-COMMISSIONING,DEEPCAR MEDICAL CENTRE,39111101,43351.63,S36 2RA
Department of Health,NHS Sheffield CCG,31/12/2021,C&M-PMS DES Learn Dsblty Hlth Chk,PRC DELEGATED CO-COMMISSIONING,DEEPCAR MEDICAL CENTRE,39111101,560,S36 2RA
Department of Health,NHS Sheffield CCG,31/12/2021,C&M-PMS LONG COVID ES,PRC DELEGATED CO-COMMISSIONING,DEEPCAR MEDICAL CENTRE,39111101,217.98,S36 2RA
Department of Health,NHS Sheffield CCG,31/12/2021,C&M-PMS Out of Hours Opt Outs,PRC DELEGATED CO-COMMISSIONING,DEEPCAR MEDICAL CENTRE,39111101,24.05,S36 2RA
Department of Health,NHS Sheffield CCG,31/12/2021,C&M-PMS PCN DES Participation,PRC DELEGATED CO-COMMISSIONING,DEEPCAR MEDICAL CENTRE,39111101,784.44,S36 2RA
Department of Health,NHS Sheffield CCG,31/12/2021,C&M-PMS Prem Healthcentre Rent,PRC DELEGATED CO-COMMISSIONING,DEEPCAR MEDICAL CENTRE,39111101,31188.15,S36 2RA
Department of Health,NHS Sheffield CCG,31/12/2021,C&M-PMS QOF Aspiration,PRC DELEGATED CO-COMMISSIONING,DEEPCAR MEDICAL CENTRE,39111101,4646.77,S36 2RA
Department of Health,NHS Sheffield CCG,31/12/2021,C&M-PMS Contract Value,PRC DELEGATED CO-COMMISSIONING,DR MILNER & PARTNERS,39111104,81176.13,S6 4JQ
Department of Health,NHS Sheffield CCG,31/12/2021,C&M-PMS LONG COVID ES,PRC DELEGATED CO-COMMISSIONING,DR MILNER & PARTNERS,39111104,442.11,S6 4JQ
Department of Health,NHS Sheffield CCG,31/12/2021,C&M-PMS Out of Hours Opt Outs,PRC DELEGATED CO-COMMISSIONING,DR MILNER & PARTNERS,39111104,35.09,S6 4JQ
Department of Health,NHS Sheffield CCG,31/12/2021,C&M-PMS PCN DES Participation,PRC DELEGATED CO-COMMISSIONING,DR MILNER & PARTNERS,39111104,1456.05,S6 4JQ
Department of Health,NHS Sheffield CCG,31/12/2021,C&M-PMS PCO Locum Sickness,PRC DELEGATED CO-COMMISSIONING,DR MILNER & PARTNERS,39111104,3685,S6 4JQ
Department of Health,NHS Sheffield CCG,31/12/2021,C&M-PMS Prem Actual Rent,PRC DELEGATED CO-COMMISSIONING,DR MILNER & PARTNERS,39111104,11382,S6 4JQ
Department of Health,NHS Sheffield CCG,31/12/2021,C&M-PMS Prem Notional Rent,PRC DELEGATED CO-COMMISSIONING,DR MILNER & PARTNERS,39111104,15996.59,S6 4JQ
Department of Health,NHS Sheffield CCG,31/12/2021,C&M-PMS Prem Rates,PRC DELEGATED CO-COMMISSIONING,DR MILNER & PARTNERS,39111104,1944,S6 4JQ
Department of Health,NHS Sheffield CCG,31/12/2021,C&M-PMS QOF Aspiration,PRC DELEGATED CO-COMMISSIONING,DR MILNER & PARTNERS,39111104,7550.33,S6 4JQ
Department of Health,NHS Sheffield CCG,31/12/2021,C&M-PMS Contract Value,PRC DELEGATED CO-COMMISSIONING,DR MILNER & PARTNERS,39111105,-1174.09,S6 4JQ
Department of Health,NHS Sheffield CCG,31/12/2021,C&M-PMS GP Statutory Levy,PRC DELEGATED CO-COMMISSIONING,DR MILNER & PARTNERS,39111105,-375.17,S6 4JQ
Department of Health,NHS Sheffield CCG,31/12/2021,C&M-PMS Out of Hours Opt Outs,PRC DELEGATED CO-COMMISSIONING,DR MILNER & PARTNERS,39111105,-3827.58,S6 4JQ
Department of Health,NHS Sheffield CCG,31/12/2021,C&M-PMS Prem Notional Rent,PRC DELEGATED CO-COMMISSIONING,DR MILNER & PARTNERS,39111105,-11382,S6 4JQ
Department of Health,NHS Sheffield CCG,31/12/2021,C&M-PMS Contract Value,PRC DELEGATED CO-COMMISSIONING,DOVERCOURT SURGERY,39111106,80923.47,S2 5FX
Department of Health,NHS Sheffield CCG,31/12/2021,C&M-PMS LONG COVID ES,PRC DELEGATED CO-COMMISSIONING,DOVERCOURT SURGERY,39111106,362.38,S2 5FX
Department of Health,NHS Sheffield CCG,31/12/2021,C&M-PMS Out of Hours Opt Outs,PRC DELEGATED CO-COMMISSIONING,DOVERCOURT SURGERY,39111106,11.75,S2 5FX
Department of Health,NHS Sheffield CCG,31/12/2021,C&M-PMS PCN DES Participation,PRC DELEGATED CO-COMMISSIONING,DOVERCOURT SURGERY,39111106,1436.25,S2 5FX
Department of Health,NHS Sheffield CCG,31/12/2021,C&M-PMS PCO Other,PRC DELEGATED CO-COMMISSIONING,DOVERCOURT SURGERY,39111106,552,S2 5FX
Department of Health,NHS Sheffield CCG,31/12/2021,C&M-PMS Prem Actual Rent,PRC DELEGATED CO-COMMISSIONING,DOVERCOURT SURGERY,39111106,14108.33,S2 5FX
Department of Health,NHS Sheffield CCG,31/12/2021,C&M-PMS Prem Notional Rent,PRC DELEGATED CO-COMMISSIONING,DOVERCOURT SURGERY,39111106,2158.33,S2 5FX
Department of Health,NHS Sheffield CCG,31/12/2021,C&M-PMS QOF Aspiration,PRC DELEGATED CO-COMMISSIONING,DOVERCOURT SURGERY,39111106,8804.83,S2 5FX
Department of Health,NHS Sheffield CCG,31/12/2021,C&M-PMS Contract Value,PRC DELEGATED CO-COMMISSIONING,FIRTH PARK SURGERY,39111108,80907.98,S5 6HH
Department of Health,NHS Sheffield CCG,31/12/2021,C&M-PMS DES Learn Dsblty Hlth Chk,PRC DELEGATED CO-COMMISSIONING,FIRTH PARK SURGERY,39111108,1120,S5 6HH
Department of Health,NHS Sheffield CCG,31/12/2021,C&M-PMS LONG COVID ES,PRC DELEGATED CO-COMMISSIONING,FIRTH PARK SURGERY,39111108,413.67,S5 6HH
Department of Health,NHS Sheffield CCG,31/12/2021,C&M-PMS Out of Hours Opt Outs,PRC DELEGATED CO-COMMISSIONING,FIRTH PARK SURGERY,39111108,53.1,S5 6HH
Department of Health,NHS Sheffield CCG,31/12/2021,C&M-PMS PCN DES Participation,PRC DELEGATED CO-COMMISSIONING,FIRTH PARK SURGERY,39111108,1461.7,S5 6HH
Department of Health,NHS Sheffield CCG,31/12/2021,C&M-PMS Prem Notional Rent,PRC DELEGATED CO-COMMISSIONING,FIRTH PARK SURGERY,39111108,4666.67,S5 6HH
Department of Health,NHS Sheffield CCG,31/12/2021,C&M-PMS Prem Rates,PRC DELEGATED CO-COMMISSIONING,FIRTH PARK SURGERY,39111108,1508,S5 6HH
Department of Health,NHS Sheffield CCG,31/12/2021,C&M-PMS Prem Water Rates,PRC DELEGATED CO-COMMISSIONING,FIRTH PARK SURGERY,39111108,168.54,S5 6HH
Department of Health,NHS Sheffield CCG,31/12/2021,C&M-PMS QOF Aspiration,PRC DELEGATED CO-COMMISSIONING,FIRTH PARK SURGERY,39111108,8220.05,S5 6HH
Department of Health,NHS Sheffield CCG,31/12/2021,C&M-PMS WEIGHT MANAGEMENT SERVICE,PRC DELEGATED CO-COMMISSIONING,FIRTH PARK SURGERY,39111108,34.5,S5 6HH
Department of Health,NHS Sheffield CCG,31/12/2021,C&M-PMS Contract Value,PRC DELEGATED CO-COMMISSIONING,UNIVERSITY HEALTH SERVICE,39111110,-24074.97,S3 7QP
Department of Health,NHS Sheffield CCG,31/12/2021,C&M-PMS GP Statutory Levy,PRC DELEGATED CO-COMMISSIONING,UNIVERSITY HEALTH SERVICE,39111110,-1390.62,S3 7QP
Department of Health,NHS Sheffield CCG,31/12/2021,C&M-PMS Out of Hours Opt Outs,PRC DELEGATED CO-COMMISSIONING,UNIVERSITY HEALTH SERVICE,39111110,-10482.86,S3 7QP
Department of Health,NHS Sheffield CCG,31/12/2021,C&M-PMS Contract Value,PRC DELEGATED CO-COMMISSIONING,UPWELL STREET SURGERY,39111111,38728.2,S4 8AN
Department of Health,NHS Sheffield CCG,31/12/2021,C&M-PMS DES Learn Dsblty Hlth Chk,PRC DELEGATED CO-COMMISSIONING,UPWELL STREET SURGERY,39111111,140,S4 8AN
Department of Health,NHS Sheffield CCG,31/12/2021,C&M-PMS Funding Differential Review,PRC DELEGATED CO-COMMISSIONING,UPWELL STREET SURGERY,39111111,911.19,S4 8AN
Department of Health,NHS Sheffield CCG,31/12/2021,C&M-PMS LONG COVID ES,PRC DELEGATED CO-COMMISSIONING,UPWELL STREET SURGERY,39111111,191.23,S4 8AN
Department of Health,NHS Sheffield CCG,31/12/2021,C&M-PMS PCN DES Participation,PRC DELEGATED CO-COMMISSIONING,UPWELL STREET SURGERY,39111111,680.46,S4 8AN
Department of Health,NHS Sheffield CCG,31/12/2021,C&M-PMS PCO Other,PRC DELEGATED CO-COMMISSIONING,UPWELL STREET SURGERY,39111111,315.4,S4 8AN
Department of Health,NHS Sheffield CCG,31/12/2021,C&M-PMS Prem Notional Rent,PRC DELEGATED CO-COMMISSIONING,UPWELL STREET SURGERY,39111111,10850.83,S4 8AN
Department of Health,NHS Sheffield CCG,31/12/2021,C&M-PMS Prem Rates,PRC DELEGATED CO-COMMISSIONING,UPWELL STREET SURGERY,39111111,998,S4 8AN
Department of Health,NHS Sheffield CCG,31/12/2021,C&M-PMS QOF Aspiration,PRC DELEGATED CO-COMMISSIONING,UPWELL STREET SURGERY,39111111,4098.59,S4 8AN
Department of Health,NHS Sheffield CCG,31/12/2021,C&M-PCN-PMS DES Leadership Payment,PRC DELEGATED CO-COMMISSIONING,VALLEY MEDICAL CENTRE,39111113,2316.17,S36 1BX
Department of Health,NHS Sheffield CCG,31/12/2021,C&M-PMS Contract Value,PRC DELEGATED CO-COMMISSIONING,VALLEY MEDICAL CENTRE,39111113,85063.98,S36 1BX
Department of Health,NHS Sheffield CCG,31/12/2021,C&M-PMS DES Extended Hours Access,PRC DELEGATED CO-COMMISSIONING,VALLEY MEDICAL CENTRE,39111113,2477.4,S36 1BX
Department of Health,NHS Sheffield CCG,31/12/2021,C&M-PMS DES Learn Dsblty Hlth Chk,PRC DELEGATED CO-COMMISSIONING,VALLEY MEDICAL CENTRE,39111113,140,S36 1BX
Department of Health,NHS Sheffield CCG,31/12/2021,C&M-PMS LONG COVID ES,PRC DELEGATED CO-COMMISSIONING,VALLEY MEDICAL CENTRE,39111113,396.48,S36 1BX
Department of Health,NHS Sheffield CCG,31/12/2021,C&M-PMS Out of Hours Opt Outs,PRC DELEGATED CO-COMMISSIONING,VALLEY MEDICAL CENTRE,39111113,8.51,S36 1BX
Department of Health,NHS Sheffield CCG,31/12/2021,C&M-PMS PCN DES Clin Pharmacist,PRC DELEGATED CO-COMMISSIONING,VALLEY MEDICAL CENTRE,39111113,4776.5,S36 1BX
Department of Health,NHS Sheffield CCG,31/12/2021,C&M-PMS PCN DES Clinical Director,PRC DELEGATED CO-COMMISSIONING,VALLEY MEDICAL CENTRE,39111113,1266.23,S36 1BX
Department of Health,NHS Sheffield CCG,31/12/2021,C&M-PMS PCN DES PCN support,LOCAL ENHANCED SERVICES,VALLEY MEDICAL CENTRE,39111113,2580.63,S36 1BX
Department of Health,NHS Sheffield CCG,31/12/2021,C&M-PMS PCN DES Participation,PRC DELEGATED CO-COMMISSIONING,VALLEY MEDICAL CENTRE,39111113,1524.87,S36 1BX
Department of Health,NHS Sheffield CCG,31/12/2021,C&M-PMS PCN DES Physiotherapist,PRC DELEGATED CO-COMMISSIONING,VALLEY MEDICAL CENTRE,39111113,2073.61,S36 1BX
Department of Health,NHS Sheffield CCG,31/12/2021,C&M-PMS PCN DES Soc Prescribing,PRC DELEGATED CO-COMMISSIONING,VALLEY MEDICAL CENTRE,39111113,753.7,S36 1BX
Department of Health,NHS Sheffield CCG,31/12/2021,C&M-PMS Prem Actual Rent,PRC DELEGATED CO-COMMISSIONING,VALLEY MEDICAL CENTRE,39111113,25468.75,S36 1BX
Department of Health,NHS Sheffield CCG,31/12/2021,C&M-PMS Prem Rates,PRC DELEGATED CO-COMMISSIONING,VALLEY MEDICAL CENTRE,39111113,657,S36 1BX
Department of Health,NHS Sheffield CCG,31/12/2021,C&M-PMS QOF Aspiration,PRC DELEGATED CO-COMMISSIONING,VALLEY MEDICAL CENTRE,39111113,9844.79,S36 1BX
Department of Health,NHS Sheffield CCG,31/12/2021,C&M-PMS WEIGHT MANAGEMENT SERVICE,PRC DELEGATED CO-COMMISSIONING,VALLEY MEDICAL CENTRE,39111113,161,S36 1BX
Department of Health,NHS Sheffield CCG,31/12/2021,C&M-PMS Contract Value,PRC DELEGATED CO-COMMISSIONING,VALLEY MEDICAL CENTRE,39111114,-616.89,S36 1BX
Department of Health,NHS Sheffield CCG,31/12/2021,C&M-PMS GP Statutory Levy,PRC DELEGATED CO-COMMISSIONING,VALLEY MEDICAL CENTRE,39111114,-337.37,S36 1BX
Department of Health,NHS Sheffield CCG,31/12/2021,C&M-PMS Out of Hours Opt Outs,PRC DELEGATED CO-COMMISSIONING,VALLEY MEDICAL CENTRE,39111114,-4005.38,S36 1BX
Department of Health,NHS Sheffield CCG,31/12/2021,Seconded-Basic Sal-Staff fm oth org,BEREAVEMENT SERVICE,NHS CONFEDERATION,39111754,-55041.32,LS10 1JR
Department of Health,NHS Sheffield CCG,31/12/2021,C&M-APMS Contract Value,PRC DELEGATED CO-COMMISSIONING,CLOVER CITY PRACTICE,39124368,33923.53,S9 4QH
Department of Health,NHS Sheffield CCG,31/12/2021,C&M-APMS LONG COVID ES,PRC DELEGATED CO-COMMISSIONING,CLOVER CITY PRACTICE,39124368,206.81,S9 4QH
Department of Health,NHS Sheffield CCG,31/12/2021,C&M-APMS PCN DES Participation,PRC DELEGATED CO-COMMISSIONING,CLOVER CITY PRACTICE,39124368,592.77,S9 4QH
Department of Health,NHS Sheffield CCG,31/12/2021,C&M-APMS PCO Locum Susp Drs,PRC DELEGATED CO-COMMISSIONING,CLOVER CITY PRACTICE,39124368,15719.66,S9 4QH
Department of Health,NHS Sheffield CCG,31/12/2021,C&M-APMS QOF Aspiration,PRC DELEGATED CO-COMMISSIONING,CLOVER CITY PRACTICE,39124368,2087.76,S9 4QH
Department of Health,NHS Sheffield CCG,31/12/2021,C&M-APMS WEIGHT MANAGEMENT SERVICE,PRC DELEGATED CO-COMMISSIONING,CLOVER CITY PRACTICE,39124368,34.5,S9 4QH
Department of Health,NHS Sheffield CCG,31/12/2021,C&M-PMS Contract Value,PRC DELEGATED CO-COMMISSIONING,MEADOWHEAD GROUP PRACTICE,39124369,165813.99,S8 7RL
Department of Health,NHS Sheffield CCG,31/12/2021,C&M-PMS Funding Differential Review,PRC DELEGATED CO-COMMISSIONING,MEADOWHEAD GROUP PRACTICE,39124369,1641.85,S8 7RL
Department of Health,NHS Sheffield CCG,31/12/2021,C&M-PMS LONG COVID ES,PRC DELEGATED CO-COMMISSIONING,MEADOWHEAD GROUP PRACTICE,39124369,764.3,S8 7RL
Department of Health,NHS Sheffield CCG,31/12/2021,C&M-PMS PCN DES Participation,PRC DELEGATED CO-COMMISSIONING,MEADOWHEAD GROUP PRACTICE,39124369,2652.53,S8 7RL
Department of Health,NHS Sheffield CCG,31/12/2021,C&M-PMS Prem Actual Rent,PRC DELEGATED CO-COMMISSIONING,MEADOWHEAD GROUP PRACTICE,39124369,3358.33,S8 7RL
Department of Health,NHS Sheffield CCG,31/12/2021,C&M-PMS Prem Cost Rent,PRC DELEGATED CO-COMMISSIONING,MEADOWHEAD GROUP PRACTICE,39124369,3647.42,S8 7RL
Department of Health,NHS Sheffield CCG,31/12/2021,C&M-PMS Prem Healthcentre Rent,PRC DELEGATED CO-COMMISSIONING,MEADOWHEAD GROUP PRACTICE,39124369,42600.17,S8 7RL
Department of Health,NHS Sheffield CCG,31/12/2021,C&M-PMS Prem Notional Rent,PRC DELEGATED CO-COMMISSIONING,MEADOWHEAD GROUP PRACTICE,39124369,5666.67,S8 7RL
Department of Health,NHS Sheffield CCG,31/12/2021,C&M-PMS Prem Rates,PRC DELEGATED CO-COMMISSIONING,MEADOWHEAD GROUP PRACTICE,39124369,798,S8 7RL
Department of Health,NHS Sheffield CCG,31/12/2021,C&M-PMS QOF Aspiration,PRC DELEGATED CO-COMMISSIONING,MEADOWHEAD GROUP PRACTICE,39124369,18549.4,S8 7RL
Department of Health,NHS Sheffield CCG,31/12/2021,C&M-PMS WEIGHT MANAGEMENT SERVICE,PRC DELEGATED CO-COMMISSIONING,MEADOWHEAD GROUP PRACTICE,39124369,253,S8 7RL
Department of Health,NHS Sheffield CCG,31/12/2021,C&M-PMS Contract Value,PRC DELEGATED CO-COMMISSIONING,MOSBOROUGH HEALTH CENTRE,39124370,53726.94,S20 5BQ
Department of Health,NHS Sheffield CCG,31/12/2021,C&M-PMS DES Learn Dsblty Hlth Chk,PRC DELEGATED CO-COMMISSIONING,MOSBOROUGH HEALTH CENTRE,39124370,140,S20 5BQ
Department of Health,NHS Sheffield CCG,31/12/2021,C&M-PMS LONG COVID ES,PRC DELEGATED CO-COMMISSIONING,MOSBOROUGH HEALTH CENTRE,39124370,286.99,S20 5BQ
Department of Health,NHS Sheffield CCG,31/12/2021,C&M-PMS Out of Hours Opt Outs,PRC DELEGATED CO-COMMISSIONING,MOSBOROUGH HEALTH CENTRE,39124370,7.89,S20 5BQ
Department of Health,NHS Sheffield CCG,31/12/2021,C&M-PMS PCN DES Participation,PRC DELEGATED CO-COMMISSIONING,MOSBOROUGH HEALTH CENTRE,39124370,972.62,S20 5BQ
Department of Health,NHS Sheffield CCG,31/12/2021,C&M-PMS PCO Other,PRC DELEGATED CO-COMMISSIONING,MOSBOROUGH HEALTH CENTRE,39124370,447.8,S20 5BQ
Department of Health,NHS Sheffield CCG,31/12/2021,C&M-PMS Prem Notional Rent,PRC DELEGATED CO-COMMISSIONING,MOSBOROUGH HEALTH CENTRE,39124370,4541.67,S20 5BQ
Department of Health,NHS Sheffield CCG,31/12/2021,C&M-PMS Prem Rates,PRC DELEGATED CO-COMMISSIONING,MOSBOROUGH HEALTH CENTRE,39124370,711,S20 5BQ
Department of Health,NHS Sheffield CCG,31/12/2021,C&M-PMS QOF Aspiration,PRC DELEGATED CO-COMMISSIONING,MOSBOROUGH HEALTH CENTRE,39124370,6344.52,S20 5BQ
Department of Health,NHS Sheffield CCG,31/12/2021,C&M-PMS WEIGHT MANAGEMENT SERVICE,PRC DELEGATED CO-COMMISSIONING,MOSBOROUGH HEALTH CENTRE,39124370,46,S20 5BQ
Department of Health,NHS Sheffield CCG,31/12/2021,C&M-PMS Contract Value,PRC DELEGATED CO-COMMISSIONING,OWLTHORPE MEDICAL CENTRE,39124371,34600.51,S20 6PD
Department of Health,NHS Sheffield CCG,31/12/2021,C&M-PMS LONG COVID ES,PRC DELEGATED CO-COMMISSIONING,OWLTHORPE MEDICAL CENTRE,39124371,178.78,S20 6PD
Department of Health,NHS Sheffield CCG,31/12/2021,C&M-PMS Out of Hours Opt Outs,PRC DELEGATED CO-COMMISSIONING,OWLTHORPE MEDICAL CENTRE,39124371,8.44,S20 6PD
Department of Health,NHS Sheffield CCG,31/12/2021,C&M-PMS PCN DES Participation,PRC DELEGATED CO-COMMISSIONING,OWLTHORPE MEDICAL CENTRE,39124371,625.13,S20 6PD
Department of Health,NHS Sheffield CCG,31/12/2021,C&M-PMS Prem Actual Rent,PRC DELEGATED CO-COMMISSIONING,OWLTHORPE MEDICAL CENTRE,39124371,7539.58,S20 6PD
Department of Health,NHS Sheffield CCG,31/12/2021,C&M-PMS Prem Rates,PRC DELEGATED CO-COMMISSIONING,OWLTHORPE MEDICAL CENTRE,39124371,1023,S20 6PD
Department of Health,NHS Sheffield CCG,31/12/2021,C&M-PMS QOF Aspiration,PRC DELEGATED CO-COMMISSIONING,OWLTHORPE MEDICAL CENTRE,39124371,4236.51,S20 6PD
Department of Health,NHS Sheffield CCG,31/12/2021,C&M-PMS WEIGHT MANAGEMENT SERVICE,PRC DELEGATED CO-COMMISSIONING,OWLTHORPE MEDICAL CENTRE,39124371,69,S20 6PD
Department of Health,NHS Sheffield CCG,31/12/2021,C&M-PMS Contract Value,PRC DELEGATED CO-COMMISSIONING,FALKLAND HOUSE,39124372,28137.51,S11 7PL
Department of Health,NHS Sheffield CCG,31/12/2021,C&M-PMS LONG COVID ES,PRC DELEGATED CO-COMMISSIONING,FALKLAND HOUSE,39124372,164.77,S11 7PL
Department of Health,NHS Sheffield CCG,31/12/2021,C&M-PMS PCN DES Participation,PRC DELEGATED CO-COMMISSIONING,FALKLAND HOUSE,39124372,501.49,S11 7PL
Department of Health,NHS Sheffield CCG,31/12/2021,C&M-PMS PCO Other,PRC DELEGATED CO-COMMISSIONING,FALKLAND HOUSE,39124372,278.9,S11 7PL
Department of Health,NHS Sheffield CCG,31/12/2021,C&M-PMS Prem Notional Rent,PRC DELEGATED CO-COMMISSIONING,FALKLAND HOUSE,39124372,1904.17,S11 7PL
Department of Health,NHS Sheffield CCG,31/12/2021,C&M-PMS Prem Rates,PRC DELEGATED CO-COMMISSIONING,FALKLAND HOUSE,39124372,786,S11 7PL
Department of Health,NHS Sheffield CCG,31/12/2021,C&M-PMS QOF Aspiration,PRC DELEGATED CO-COMMISSIONING,FALKLAND HOUSE,39124372,3362.7,S11 7PL
Department of Health,NHS Sheffield CCG,31/12/2021,C&M-PMS WEIGHT MANAGEMENT SERVICE,PRC DELEGATED CO-COMMISSIONING,FALKLAND HOUSE,39124372,11.5,S11 7PL
Department of Health,NHS Sheffield CCG,31/12/2021,C&M- PCN DES Nursing Associate,PRC DELEGATED CO-COMMISSIONING,UNIVERSITY HEALTH SERVICE,39124373,1920.67,S3 7QP
Department of Health,NHS Sheffield CCG,31/12/2021,C&M-PCN-PMS DES Leadership Payment,PRC DELEGATED CO-COMMISSIONING,UNIVERSITY HEALTH SERVICE,39124373,3369.83,S3 7QP
Department of Health,NHS Sheffield CCG,31/12/2021,C&M-PMS Contract Value,PRC DELEGATED CO-COMMISSIONING,UNIVERSITY HEALTH SERVICE,39124373,222297.66,S3 7QP
Department of Health,NHS Sheffield CCG,31/12/2021,C&M-PMS DES Extended Hours Access,PRC DELEGATED CO-COMMISSIONING,UNIVERSITY HEALTH SERVICE,39124373,4876.32,S3 7QP
Department of Health,NHS Sheffield CCG,31/12/2021,C&M-PMS LONG COVID ES,PRC DELEGATED CO-COMMISSIONING,UNIVERSITY HEALTH SERVICE,39124373,1675.11,S3 7QP
Department of Health,NHS Sheffield CCG,31/12/2021,C&M-PMS Out of Hours Opt Outs,PRC DELEGATED CO-COMMISSIONING,UNIVERSITY HEALTH SERVICE,39124373,1072.83,S3 7QP
Department of Health,NHS Sheffield CCG,31/12/2021,C&M-PMS PCN DES Clin Pharmacist,PRC DELEGATED CO-COMMISSIONING,UNIVERSITY HEALTH SERVICE,39124373,9232.97,S3 7QP
Department of Health,NHS Sheffield CCG,31/12/2021,C&M-PMS PCN DES Clinical Director,PRC DELEGATED CO-COMMISSIONING,UNIVERSITY HEALTH SERVICE,39124373,2492.34,S3 7QP
Department of Health,NHS Sheffield CCG,31/12/2021,C&M-PMS PCN DES PCN support,LOCAL ENHANCED SERVICES,UNIVERSITY HEALTH SERVICE,39124373,5079.5,S3 7QP
Department of Health,NHS Sheffield CCG,31/12/2021,C&M-PMS PCN DES Participation,PRC DELEGATED CO-COMMISSIONING,UNIVERSITY HEALTH SERVICE,39124373,3676.64,S3 7QP
Department of Health,NHS Sheffield CCG,31/12/2021,C&M-PMS PCN DES Physiotherapist,PRC DELEGATED CO-COMMISSIONING,UNIVERSITY HEALTH SERVICE,39124373,3053.47,S3 7QP
Department of Health,NHS Sheffield CCG,31/12/2021,C&M-PMS PCN DES Soc Prescribing,PRC DELEGATED CO-COMMISSIONING,UNIVERSITY HEALTH SERVICE,39124373,2791.02,S3 7QP
Department of Health,NHS Sheffield CCG,31/12/2021,C&M-PMS PCO Locum Sickness,PRC DELEGATED CO-COMMISSIONING,UNIVERSITY HEALTH SERVICE,39124373,11091.51,S3 7QP
Department of Health,NHS Sheffield CCG,31/12/2021,C&M-PMS Prem Notional Rent,PRC DELEGATED CO-COMMISSIONING,UNIVERSITY HEALTH SERVICE,39124373,15833.33,S3 7QP
Department of Health,NHS Sheffield CCG,31/12/2021,C&M-PMS QOF Aspiration,PRC DELEGATED CO-COMMISSIONING,UNIVERSITY HEALTH SERVICE,39124373,8048.38,S3 7QP
Department of Health,NHS Sheffield CCG,31/12/2021,Clinical&Medical-Independent Sector,ACUTE COMMISSIONING,SPAMEDICA LTD,39136574,108079.79,BL1 1HU
Department of Health,NHS Sheffield CCG,31/12/2021,Seconded-Basic Sal-Staff fm oth org,BEREAVEMENT SERVICE,NHS CONFEDERATION,39136620,55041.32,LS10 1JR
Department of Health,NHS Sheffield CCG,31/12/2021,CLINICAL AND MEDICAL GOODS & SERVICES - HOSPITAL DISCHARGE PROGRAMME,COMMUNITY SERVICES,SHEFFIELD TEACHING HOSPITALS NHS FOUNDATION TRUST,39136629,572000,S5 7AU
Department of Health,NHS Sheffield CCG,31/12/2021,C&M-APMS DES Extended Hours Access,GP FORWARD VIEW,PRIMARY CARE SHEFFIELD LTD,39136631,309441.67,S12 3GH
Department of Health,NHS Sheffield CCG,31/12/2021,C&M-GMS LES Basket of Procedures,LOCAL ENHANCED SERVICES,PRIMARY CARE SHEFFIELD LTD,39136645,53558.33,S12 3GH
Department of Health,NHS Sheffield CCG,31/12/2021,Clinical&Medical-Voluntary Sector,MENTAL HEALTH SERVICES - OTHER,SOUTH YORKSHIRE HOUSING ASSOCIATION LTD,39136670,137734.56,S1 4EB
Department of Health,NHS Sheffield CCG,31/12/2021,Cont Care-Physical Disab (65+),CHC ADULT FULLY FUNDED,ABBEYCARE NURSING,39136751,59238.52,S35 9YY
Department of Health,NHS Sheffield CCG,31/12/2021,Seconded-Basic Sal-Staff fm oth org,BEREAVEMENT SERVICE,NHS CONFEDERATION,39136765,47126,LS10 1JR
Department of Health,NHS Sheffield CCG,31/12/2021,Seconded-Employer's NHI Costs,BEREAVEMENT SERVICE,NHS CONFEDERATION,39136765,5087.76,LS10 1JR
Department of Health,NHS Sheffield CCG,31/12/2021,Clinical&Medical-Voluntary Sector,HOSPICES,ST LUKES HOSPICE,39136780,248000,S11 9NE
Department of Health,NHS Sheffield CCG,31/12/2021,Clinical&Medical-Voluntary Sector,MENTAL HEALTH SERVICES - COLLABORATIVE COMMISSIONING,SHEFFIELD MIND,39159212,25608.83,S11 8AL
Department of Health,NHS Sheffield CCG,31/12/2021,Cont Care- Adult 100% Fully Funded,CHC ADULT FULLY FUNDED,SOUTH YORKSHIRE HOUSING ASSOCIATION LTD,39173518,25500,S1 4HF
Department of Health,NHS Sheffield CCG,31/12/2021,Cont Care- Adult 100% Fully Funded,CHC ADULT FULLY FUNDED,SOUTH YORKSHIRE HOUSING ASSOCIATION LTD,39173528,46763.59,S1 4HF
Department of Health,NHS Sheffield CCG,31/12/2021,Cont Care- Adult 100% Fully Funded,CHC ADULT FULLY FUNDED,SOUTH YORKSHIRE HOUSING ASSOCIATION LTD,39173532,241552.99,S1 4HF
Department of Health,NHS Sheffield CCG,31/12/2021,Clinical&Medical-Independent Sector,MENTAL HEALTH CONTRACTS,SUSASH GB LTD T/A EAGLE HOUSE,39173537,30091.75,S11 8NP
Department of Health,NHS Sheffield CCG,31/12/2021,Clinical&Medical-Independent Sector,MENTAL HEALTH CONTRACTS,SOUTH YORKSHIRE HOUSING ASSOCIATION LTD,39173542,34434.83,S1 4HF
Department of Health,NHS Sheffield CCG,31/12/2021,Hcare Srv Rec Fdtn Trust-Contract Baseline,ACUTE COMMISSIONING,BARNSLEY HOSPITAL NHS FOUNDATION TRUST,39173545,113425.15,S75 2EP
Department of Health,NHS Sheffield CCG,31/12/2021,Hcare Srv Rec Fdtn Trust-Contract Baseline,ACUTE COMMISSIONING,CHESTERFIELD ROYAL HOSPITAL NHS FOUNDATION TRUST,39173558,375326.75,S44 5BL
Department of Health,NHS Sheffield CCG,31/12/2021,Hcare Srv Rec Fdtn Trust-Contract Baseline,ACUTE COMMISSIONING,DONCASTER AND BASSETLAW HOSPITALS NHS FOUNDATION TRUST,39173562,47889.62,WF3 1WE
Department of Health,NHS Sheffield CCG,31/12/2021,Hcare Srv Rec Fdtn Trust-Contract Baseline,ACUTE CHILDRENS SERVICES,SHEFFIELD CHILDRENS NHS FOUNDATION TRUST,39173573,3840049.4,S10 2TH
Department of Health,NHS Sheffield CCG,31/12/2021,Hcare Srv Rec Fdtn Trust-Contract Baseline,ACUTE CHILDRENS SERVICES,SHEFFIELD CHILDRENS NHS FOUNDATION TRUST,39173575,283911.53,S10 2TH
Department of Health,NHS Sheffield CCG,31/12/2021,Hcare Srv Rec Fdtn Trust-Contract Baseline,MENTAL HEALTH CONTRACTS,SHEFFIELD HEALTH & SOCIAL CARE NHS FOUNDATION TRUST,39173580,8865457.41,S10 3TH
Department of Health,NHS Sheffield CCG,31/12/2021,Hcare Srv Rec Fdtn Trust-Contract Baseline,MENTAL HEALTH CONTRACTS,SHEFFIELD HEALTH & SOCIAL CARE NHS FOUNDATION TRUST,39173584,852963.95,S10 3TH
Department of Health,NHS Sheffield CCG,31/12/2021,Hcare Srv Rec Fdtn Trust-Contract Baseline,ACUTE COMMISSIONING,SHEFFIELD TEACHING HOSPITALS NHS FOUNDATION TRUST,39173587,37854796.03,S5 7AU
Department of Health,NHS Sheffield CCG,31/12/2021,Hcare Srv Rec NHS Trust-Contract Baseline,ACUTE COMMISSIONING,LEEDS TEACHING HOSPITALS NHS TRUST,39173591,48657.77,LS9 7TF
Department of Health,NHS Sheffield CCG,31/12/2021,Hcare Srv Rec Fdtn Trust-Contract Baseline,ACUTE COMMISSIONING,ROTHERHAM NHS FOUNDATION TRUST,39173595,537486.34,S60 2UD
Department of Health,NHS Sheffield CCG,31/12/2021,Clinical&Medical-Serv Recd-F Trsts,BEREAVEMENT SERVICE,ROTHERHAM NHS FOUNDATION TRUST,39173604,59467.46,S60 2UD
Department of Health,NHS Sheffield CCG,31/12/2021,Hcare Srv Rec NHS Trust-Contract Baseline,MENTAL HEALTH CONTRACTS,YORKSHIRE AMBULANCE SERVICE NHS TRUST,39173611,25795.8,WF2 0XQ
Department of Health,NHS Sheffield CCG,31/12/2021,Hcare Srv Rec NHS Trust-Contract Baseline,AMBULANCE SERVICES,YORKSHIRE AMBULANCE SERVICE NHS TRUST,39173616,1954214.42,WF2 0XQ
Department of Health,NHS Sheffield CCG,31/12/2021,Hcare Srv Rec NHS Trust-Contract Baseline,PATIENT TRANSPORT,YORKSHIRE AMBULANCE SERVICE NHS TRUST,39173624,307088.05,WF2 0XQ
Department of Health,NHS Sheffield CCG,31/12/2021,Hcare Srv Rec NHS Trust-Contract Baseline,NHS 111,YORKSHIRE AMBULANCE SERVICE NHS TRUST,39173637,150839.29,WF2 0XQ
Department of Health,NHS Sheffield CCG,31/12/2021,Clinical&Medical-Serv Recd-F Trsts,BEREAVEMENT SERVICE,HUMBER TEACHING NHS FOUNDATION TRUST,39173641,51511.01,WF3 1WE
Department of Health,NHS Sheffield CCG,31/12/2021,Charges from CSU,BUSINESS INFORMATICS,NHS NORTH OF ENGLAND CSU,39178827,26554.67,WF3 1WE
Department of Health,NHS Sheffield CCG,31/12/2021,Cont Care-Funded Nursing Care Allow,FUNDED NURSING CARE,COUNTRY COURT CARE LTD,39214679,27336,S5 6UU
Department of Health,NHS Sheffield CCG,31/12/2021,Cont Care-Funded Nursing Care Allow,FUNDED NURSING CARE,ROSEBERRY CARE CENTRES,39214708,36589.86,S5 6AB
Department of Health,NHS Sheffield CCG,31/12/2021,Cont Care-Funded Nursing Care Allow,FUNDED NURSING CARE,BONDCARE,39214715,32508.4,NW4 4EF
Department of Health,NHS Sheffield CCG,31/12/2021,C&M-APMS LES CCGLcltyExec&ClinLeads,LOCAL ENHANCED SERVICES,PORTER BROOK MEDICAL CENTRE,39218878,31323,S11 8HN
Department of Health,NHS Sheffield CCG,31/12/2021,C&M-APMS LES CCGLcltyExec&ClinLeads,LOCAL ENHANCED SERVICES,MEADOWHEAD GROUP PRACTICE,39218920,30638,S8 7RL
Department of Health,NHS Sheffield CCG,31/12/2021,C&M-APMS LES CCGLcltyExec&ClinLeads,LOCAL ENHANCED SERVICES,UNIVERSITY HEALTH SERVICE,39221546,36825,S3 7QP
Department of Health,NHS Sheffield CCG,31/12/2021,Cont Care-Physical Disab (65+),CHC ADULT FULLY FUNDED,SHEFFIELD CITY COUNCIL,39221642,978653.81,S1 1UJ
Department of Health,NHS Sheffield CCG,31/12/2021,Cont Care- Prior Year Payments,CHC ADULT FULLY FUNDED,SHEFFIELD CITY COUNCIL,39221655,66260.3,S1 1UJ
Department of Health,NHS Sheffield CCG,31/12/2021,Cont Care- Children,CHC CHILDREN,SHEFFIELD CITY COUNCIL,39221664,125171.32,S1 1UJ
Department of Health,NHS Sheffield CCG,31/12/2021,Computer Software/License,PRIMARY CARE IT,ACCURX LTD,39230790,30949.76,N1 5AA
Department of Health,NHS Sheffield CCG,31/12/2021,Cont Care-Physical Disab (<65),CHC ADULT FULLY FUNDED,SOUTH YORKSHIRE HOUSING ASSOCIATION LTD,39234983,58194.94,S35 1RQ
Department of Health,NHS Sheffield CCG,31/12/2021,Cont Care-Physical Disab (<65),CHC ADULT FULLY FUNDED,FAIRWINDS HEALTH CARE LTD,39234986,31642.98,S61 1AJ
Department of Health,NHS Sheffield CCG,31/12/2021,Cont Care-Physical Disab (<65),CHC ADULT FULLY FUNDED,LONGLEY HEALTH CARE LTD,39234990,71969.76,S5 7JZ
Department of Health,NHS Sheffield CCG,31/12/2021,Cont Care-Physical Disab (<65),CHC ADULT FULLY FUNDED,YOUR CARE PROVIDER,39234995,32319.77,S73 0HQ
Department of Health,NHS Sheffield CCG,31/12/2021,Cont Care-Physical Disab (<65),CHC ADULT FULLY FUNDED,SCARSDALE GRANGE NURSING HOME,39234997,74348.2,S8 9EQ
Department of Health,NHS Sheffield CCG,31/12/2021,Cont Care-Physical Disab (<65),CHC ADULT FULLY FUNDED,SEVEN HILLS NURSING HOME,39234998,38199.02,S11 9AA
Department of Health,NHS Sheffield CCG,31/12/2021,Cont Care-Physical Disab (<65),CHC ADULT FULLY FUNDED,WILLOWBECK HEALTH CARE LTD,39235002,153972.77,S4 8AR
Department of Health,NHS Sheffield CCG,31/12/2021,Cont Care-Physical Disab (<65),CHC ADULT FULLY FUNDED,BONDCARE,39235013,56341.89,NW4 4EF
Department of Health,NHS Sheffield CCG,31/12/2021,Cont Care-Physical Disab (<65),CHC ADULT FULLY FUNDED,HORIZON CARE HOMES LTD,39235015,27400.2,S25 3QA
Department of Health,NHS Sheffield CCG,31/12/2021,Cont Care-Physical Disab (<65),CHC ADULT FULLY FUNDED,INLET LTD,39235019,73767.09,S48NB
Department of Health,NHS Sheffield CCG,31/12/2021,Cont Care-Physical Disab (65+),CHC ADULT FULLY FUNDED,SHEFFIELD CITY COUNCIL,39252081,290443.7,S1 1UJ
Department of Health,NHS Sheffield CCG,31/12/2021,Cont Care-Physical Disab (<65),CHC ADULT FULLY FUNDED,SOUTH YORKSHIRE HOUSING ASSOCIATION LTD,39252092,47219.32,S35 1RQ
Department of Health,NHS Sheffield CCG,31/12/2021,Cont Care-Physical Disab (<65),CHC ADULT FULLY FUNDED,LONGLEY HEALTH CARE LTD,39252100,74491.09,S5 7JZ
Department of Health,NHS Sheffield CCG,31/12/2021,Cont Care-Physical Disab (<65),CHC ADULT FULLY FUNDED,SCARSDALE GRANGE NURSING HOME,39252106,49150.39,S8 9EQ
Department of Health,NHS Sheffield CCG,31/12/2021,Cont Care-Physical Disab (<65),CHC ADULT FULLY FUNDED,WILLOWBECK HEALTH CARE LTD,39252114,61580.27,S4 8AR
Department of Health,NHS Sheffield CCG,31/12/2021,Cont Care-Physical Disab (<65),CHC ADULT FULLY FUNDED,SUSASH GB LTD T/A EAGLE HOUSE,39252147,25180.88,S11 8NP
Department of Health,NHS Sheffield CCG,31/12/2021,Cont Care-Physical Disab (<65),CHC ADULT FULLY FUNDED,HORIZON CARE HOMES LTD,39252150,65084.09,S25 3QA
Department of Health,NHS Sheffield CCG,31/12/2021,Clinical&Medical-Voluntary Sector,MENTAL HEALTH SERVICES - COLLABORATIVE COMMISSIONING,DISABILITY SHEFFIELD CENTRE FOR INDEPENDENT LIVING LTD,39256042,45000,S1 4FW
Department of Health,NHS Sheffield CCG,31/12/2021,Clinical&Medical-Voluntary Sector,COLLABORATIVE COMMISSIONING,SOUTH YORKSHIRE HOUSING ASSOCIATION LTD,39256080,410728.71,S1 4EB
Department of Health,NHS Sheffield CCG,31/12/2021,Cont Care-Physical Disab (65+),CHC ADULT FULLY FUNDED,BC SHEFFIELD LTD,39256089,42784.37,S9 2TJ
Department of Health,NHS Sheffield CCG,31/12/2021,Clinical&Medical-Commercial Sector,PATIENT TRANSPORT,PREMIER CARE DIRECT LTD,39256148,112480.55,DN4 5NU
Department of Health,NHS Sheffield CCG,31/12/2021,C&M-GMS LES Translation Fees,INTERPRETING SERVICES,LANGUAGELINE SOLUTIONS,39256179,32509.32,E14 5NR
Department of Health,NHS Sheffield CCG,31/12/2021,C&M-APMS DES Immediate&1st Response,LOCAL ENHANCED SERVICES,PRIMARY CARE SHEFFIELD LTD,39256221,28980,S12 3GH
Department of Health,NHS Sheffield CCG,31/12/2021,C&M-GMS PCN DES Clin Pharmacist,PRC DELEGATED CO-COMMISSIONING,PRIMARY CARE SHEFFIELD LTD,39256366,15266.55,S9 4EU
Department of Health,NHS Sheffield CCG,31/12/2021,C&M-GMS PCN DES Home/RR paramedic,PRC DELEGATED CO-COMMISSIONING,PRIMARY CARE SHEFFIELD LTD,39256366,4429.4,S9 4EU
Department of Health,NHS Sheffield CCG,31/12/2021,C&M-GMS PCN DES Physiotherapist,PRC DELEGATED CO-COMMISSIONING,PRIMARY CARE SHEFFIELD LTD,39256366,4667.5,S9 4EU
Department of Health,NHS Sheffield CCG,31/12/2021,C&M-GMS PCN DES Soc Prescribing,PRC DELEGATED CO-COMMISSIONING,PRIMARY CARE SHEFFIELD LTD,39256366,3055.24,S9 4EU
Department of Health,NHS Sheffield CCG,31/12/2021,C&M- PCN DES CARE COORDINATOR,PRC DELEGATED CO-COMMISSIONING,PRIMARY CARE SHEFFIELD LTD,39256385,1699.87,S9 4EU
Department of Health,NHS Sheffield CCG,31/12/2021,C&M-GMS PCN DES Clin Pharmacist,PRC DELEGATED CO-COMMISSIONING,PRIMARY CARE SHEFFIELD LTD,39256385,13399.16,S9 4EU
Department of Health,NHS Sheffield CCG,31/12/2021,C&M-GMS PCN DES Home/RR paramedic,PRC DELEGATED CO-COMMISSIONING,PRIMARY CARE SHEFFIELD LTD,39256385,4609.42,S9 4EU
Department of Health,NHS Sheffield CCG,31/12/2021,C&M-GMS PCN DES Physiotherapist,PRC DELEGATED CO-COMMISSIONING,PRIMARY CARE SHEFFIELD LTD,39256385,2615.31,S9 4EU
Department of Health,NHS Sheffield CCG,31/12/2021,C&M-GMS PCN DES Soc Prescribing,PRC DELEGATED CO-COMMISSIONING,PRIMARY CARE SHEFFIELD LTD,39256385,2699.91,S9 4EU
Department of Health,NHS Sheffield CCG,31/12/2021,C&M-PCN DES Adult Mental Health Practitioner,PRC DELEGATED CO-COMMISSIONING,PRIMARY CARE SHEFFIELD LTD,39256385,2264.24,S9 4EU
Department of Health,NHS Sheffield CCG,31/12/2021,C&M-PCN DES Trainee Nursing Associate,PRC DELEGATED CO-COMMISSIONING,PRIMARY CARE SHEFFIELD LTD,39256385,2042.32,S9 4EU
Department of Health,NHS Sheffield CCG,31/12/2021,Clinical&Medical-Serv Recd-F Trsts,BEREAVEMENT SERVICE,BARNSLEY HOSPITAL NHS FOUNDATION TRUST,39256415,3139000,S75 2EP
Department of Health,NHS Sheffield CCG,31/12/2021,Clinical&Medical-Independent Sector,BEREAVEMENT SERVICE,PRIMARY CARE DONCASTER LTD,39256425,30000,DN4 8QN
Department of Health,NHS Sheffield CCG,31/12/2021,Clinical&Medical-Serv Recd-F Trsts,BEREAVEMENT SERVICE,SHEFFIELD TEACHING HOSPITALS NHS FOUNDATION TRUST,39256500,52789,S5 7AU
Department of Health,NHS Sheffield CCG,31/12/2021,Seconded-Basic Sal-Staff fm oth org,CLINICAL LEADS,NHS DONCASTER CCG,39257551,87183.79,WF3 1WE
Department of Health,NHS Sheffield CCG,31/12/2021,Seconded-Employer's NHI Costs,CLINICAL LEADS,NHS DONCASTER CCG,39257551,9590.29,WF3 1WE
Department of Health,NHS Sheffield CCG,31/12/2021,Clinical&Medical-Serv Recd-F Trsts,BEREAVEMENT SERVICE,DONCASTER AND BASSETLAW HOSPITALS NHS FOUNDATION TRUST,39257560,3786000,WF3 1WE
Department of Health,NHS Sheffield CCG,31/12/2021,Clinical&Medical-Serv Recd-F Trsts,BEREAVEMENT SERVICE,DONCASTER AND BASSETLAW HOSPITALS NHS FOUNDATION TRUST,39257564,145442,WF3 1WE
Department of Health,NHS Sheffield CCG,31/12/2021,Clinical&Medical-Independent Sector,ACUTE COMMISSIONING,SPAMEDICA LTD,39257622,107994.57,BL1 1HU
Department of Health,NHS Sheffield CCG,31/12/2021,Clinical&Medical-Devolved Admin'n,NCAS/OATS,PREMIER CARE DIRECT LTD,39257682,112480.55,DN4 5NU
Department of Health,NHS Sheffield CCG,31/12/2021,Clinical&Medical-Commercial Sector,PATIENT TRANSPORT,PREMIER CARE DIRECT LTD,39257692,-112480.55,DN4 5NU
Department of Health,NHS Sheffield CCG,31/12/2021,Clinical&Medical-Serv Recd-F Trsts,BEREAVEMENT SERVICE,DONCASTER AND BASSETLAW HOSPITALS NHS FOUNDATION TRUST,39257703,31225.4,WF3 1WE
Department of Health,NHS Sheffield CCG,31/12/2021,Clinical&Medical-Serv Recd-F Trsts,BEREAVEMENT SERVICE,DONCASTER AND BASSETLAW HOSPITALS NHS FOUNDATION TRUST,39257709,25200,WF3 1WE
Department of Health,NHS Sheffield CCG,31/12/2021,Soc Care-Support Prim Care,COMMUNITY SERVICES,SHEFFIELD CITY COUNCIL,39269180,64166.67,S1 1UJ
Department of Health,NHS Sheffield CCG,31/12/2021,Soc Care-Joint H&C Teams/Working,INTERMEDIATE CARE,SHEFFIELD CITY COUNCIL,39269181,151447.58,S1 1UJ
Department of Health,NHS Sheffield CCG,31/12/2021,Clinical&Medical-Othe Public Sector,COMMUNITY SERVICES,SHEFFIELD CITY COUNCIL,39269182,150416.7,S1 1UJ
Department of Health,NHS Sheffield CCG,31/12/2021,Soc Care-Other Soc Care,COMMISSIONING - NON ACUTE,SHEFFIELD CITY COUNCIL,39269183,1635250,S1 1UJ
Department of Health,NHS Sheffield CCG,31/12/2021,Cont Care-Physical Disab (65+),CHC ADULT FULLY FUNDED,SHEFFIELD CITY COUNCIL,39269184,62941.09,S1 1UJ
Department of Health,NHS Sheffield CCG,31/12/2021,Clinical&Medical-Othe Public Sector,MENTAL HEALTH SERVICES - COLLABORATIVE COMMISSIONING,SHEFFIELD CITY COUNCIL,39269185,83669.09,S1 1UJ
Department of Health,NHS Sheffield CCG,31/12/2021,C&M-GMS IT Comm Servs -GP Practices,PRIMARY CARE IT,DAISY CORPORATE SERVICES TRADING LTD,39276265,39223.87,BB9 5SR
Department of Health,NHS Sheffield CCG,31/12/2021,Clinical&Medical-Independent Sector,ACUTE COMMISSIONING,ONEHEALTH GROUP,39276627,35658.19,S11 8UX
Department of Health,NHS Sheffield CCG,31/12/2021,CLINICAL AND MEDICAL GOODS & SERVICES - HOSPITAL DISCHARGE PROGRAMME,COMMUNITY SERVICES,SHEFFIELD CITY COUNCIL,39286252,789372,S1 1UJ
Department of Health,NHS Sheffield CCG,31/12/2021,Hcare Srv Rec NHS CCG-Non Contract,COMMUNITY SERVICES,SHEFFIELD CITY COUNCIL,39286253,248194,S1 1UJ
Department of Health,NHS Sheffield CCG,31/12/2021,Hcare Srv Rec NHS CCG-Non Contract,COMMUNITY SERVICES,SHEFFIELD CITY COUNCIL,39286254,3320000,S1 1UJ
Department of Health,NHS Sheffield CCG,31/12/2021,Clinical&Medical-Serv Recd-F Trsts,COMMUNITY SERVICES,SHEFFIELD CHILDRENS NHS FOUNDATION TRUST,39289399,34462,S10 2TH
Department of Health,NHS Sheffield CCG,31/12/2021,Clinical&Medical-Serv Recd-F Trsts,BEREAVEMENT SERVICE,SHEFFIELD CHILDRENS NHS FOUNDATION TRUST,39289412,39876,S10 2TH
Department of Health,NHS Sheffield CCG,31/12/2021,C&M-GMS Global Sum,PRC DELEGATED CO-COMMISSIONING,WALKLEY HOUSE MEDICAL CENTRE,39298274,94278.98,S6 3TN
Department of Health,NHS Sheffield CCG,31/12/2021,C&M-GMS LONG COVID ES,PRC DELEGATED CO-COMMISSIONING,WALKLEY HOUSE MEDICAL CENTRE,39298274,506.25,S6 3TN
Department of Health,NHS Sheffield CCG,31/12/2021,C&M-GMS PCN DES Participation,PRC DELEGATED CO-COMMISSIONING,WALKLEY HOUSE MEDICAL CENTRE,39298274,1785.69,S6 3TN
Department of Health,NHS Sheffield CCG,31/12/2021,C&M-GMS PCO Locum Sickness,PRC DELEGATED CO-COMMISSIONING,WALKLEY HOUSE MEDICAL CENTRE,39298274,4577.5,S6 3TN
Department of Health,NHS Sheffield CCG,31/12/2021,C&M-GMS Prem Notional Rent,PRC DELEGATED CO-COMMISSIONING,WALKLEY HOUSE MEDICAL CENTRE,39298274,5806.96,S6 3TN
Department of Health,NHS Sheffield CCG,31/12/2021,C&M-GMS Prem Rates,PRC DELEGATED CO-COMMISSIONING,WALKLEY HOUSE MEDICAL CENTRE,39298274,1297,S6 3TN
Department of Health,NHS Sheffield CCG,31/12/2021,C&M-GMS QOF Aspiration,PRC DELEGATED CO-COMMISSIONING,WALKLEY HOUSE MEDICAL CENTRE,39298274,9792.91,S6 3TN
Department of Health,NHS Sheffield CCG,31/12/2021,C&M-GMS Global Sum,PRC DELEGATED CO-COMMISSIONING,NORFOLK PARK HEALTH CENTRE,39298277,45369.57,S2 3TA
Department of Health,NHS Sheffield CCG,31/12/2021,C&M-GMS LONG COVID ES,PRC DELEGATED CO-COMMISSIONING,NORFOLK PARK HEALTH CENTRE,39298277,208.46,S2 3TA
Department of Health,NHS Sheffield CCG,31/12/2021,C&M-GMS PCN DES Participation,PRC DELEGATED CO-COMMISSIONING,NORFOLK PARK HEALTH CENTRE,39298277,820.08,S2 3TA
Department of Health,NHS Sheffield CCG,31/12/2021,C&M-GMS Prem Healthcentre Rent,PRC DELEGATED CO-COMMISSIONING,NORFOLK PARK HEALTH CENTRE,39298277,25961.04,S2 3TA
Department of Health,NHS Sheffield CCG,31/12/2021,C&M-GMS QOF Aspiration,PRC DELEGATED CO-COMMISSIONING,NORFOLK PARK HEALTH CENTRE,39298277,4434.09,S2 3TA
Department of Health,NHS Sheffield CCG,31/12/2021,C&M-GMS DES Learn Dsblty Hlth Chk,PRC DELEGATED CO-COMMISSIONING,BUCHANAN ROAD SURGERY,39298284,560,S5 8AL
Department of Health,NHS Sheffield CCG,31/12/2021,C&M-GMS Global Sum,PRC DELEGATED CO-COMMISSIONING,BUCHANAN ROAD SURGERY,39298284,37694.11,S5 8AL
Department of Health,NHS Sheffield CCG,31/12/2021,C&M-GMS LONG COVID ES,PRC DELEGATED CO-COMMISSIONING,BUCHANAN ROAD SURGERY,39298284,192.26,S5 8AL
Department of Health,NHS Sheffield CCG,31/12/2021,C&M-GMS PCN DES Participation,PRC DELEGATED CO-COMMISSIONING,BUCHANAN ROAD SURGERY,39298284,727.12,S5 8AL
Department of Health,NHS Sheffield CCG,31/12/2021,C&M-GMS Prem Notional Rent,PRC DELEGATED CO-COMMISSIONING,BUCHANAN ROAD SURGERY,39298284,2595.83,S5 8AL
Department of Health,NHS Sheffield CCG,31/12/2021,C&M-GMS Prem Rates,PRC DELEGATED CO-COMMISSIONING,BUCHANAN ROAD SURGERY,39298284,898,S5 8AL
Department of Health,NHS Sheffield CCG,31/12/2021,C&M-GMS QOF Aspiration,PRC DELEGATED CO-COMMISSIONING,BUCHANAN ROAD SURGERY,39298284,4716.42,S5 8AL
Department of Health,NHS Sheffield CCG,31/12/2021,C&M-GMS WEIGHT MANAGEMENT SERVICE,PRC DELEGATED CO-COMMISSIONING,BUCHANAN ROAD SURGERY,39298284,46,S5 8AL
Department of Health,NHS Sheffield CCG,31/12/2021,C&M-GMS DES Learn Dsblty Hlth Chk,PRC DELEGATED CO-COMMISSIONING,NORWOOD MEDICAL CENTRE SHEFFIELD,39298287,1820,S5 7HD
Department of Health,NHS Sheffield CCG,31/12/2021,C&M-GMS Global Sum,PRC DELEGATED CO-COMMISSIONING,NORWOOD MEDICAL CENTRE SHEFFIELD,39298287,70371.61,S5 7HD
Department of Health,NHS Sheffield CCG,31/12/2021,C&M-GMS LONG COVID ES,PRC DELEGATED CO-COMMISSIONING,NORWOOD MEDICAL CENTRE SHEFFIELD,39298287,336.58,S5 7HD
Department of Health,NHS Sheffield CCG,31/12/2021,C&M-GMS PCN DES Participation,PRC DELEGATED CO-COMMISSIONING,NORWOOD MEDICAL CENTRE SHEFFIELD,39298287,1332.45,S5 7HD
Department of Health,NHS Sheffield CCG,31/12/2021,C&M-GMS PCO Other,PRC DELEGATED CO-COMMISSIONING,NORWOOD MEDICAL CENTRE SHEFFIELD,39298287,515.9,S5 7HD
Department of Health,NHS Sheffield CCG,31/12/2021,C&M-GMS Prem Notional Rent,PRC DELEGATED CO-COMMISSIONING,NORWOOD MEDICAL CENTRE SHEFFIELD,39298287,5187.5,S5 7HD
Department of Health,NHS Sheffield CCG,31/12/2021,C&M-GMS QOF Aspiration,PRC DELEGATED CO-COMMISSIONING,NORWOOD MEDICAL CENTRE SHEFFIELD,39298287,8469.31,S5 7HD
Department of Health,NHS Sheffield CCG,31/12/2021,C&M-GMS DES Learn Dsblty Hlth Chk,PRC DELEGATED CO-COMMISSIONING,TRAMWAYS MEDICAL CENTRE,39298293,140,S6 4JQ
Department of Health,NHS Sheffield CCG,31/12/2021,C&M-GMS Global Sum,PRC DELEGATED CO-COMMISSIONING,TRAMWAYS MEDICAL CENTRE,39298293,66697.43,S6 4JQ
Department of Health,NHS Sheffield CCG,31/12/2021,C&M-GMS LONG COVID ES,PRC DELEGATED CO-COMMISSIONING,TRAMWAYS MEDICAL CENTRE,39298293,344.49,S6 4JQ
Department of Health,NHS Sheffield CCG,31/12/2021,C&M-GMS PCN DES Participation,PRC DELEGATED CO-COMMISSIONING,TRAMWAYS MEDICAL CENTRE,39298293,1255.37,S6 4JQ
Department of Health,NHS Sheffield CCG,31/12/2021,C&M-GMS PCO Other,PRC DELEGATED CO-COMMISSIONING,TRAMWAYS MEDICAL CENTRE,39298293,527.2,S6 4JQ
Department of Health,NHS Sheffield CCG,31/12/2021,C&M-GMS Prem Cost Rent,PRC DELEGATED CO-COMMISSIONING,TRAMWAYS MEDICAL CENTRE,39298293,4012.75,S6 4JQ
Department of Health,NHS Sheffield CCG,31/12/2021,C&M-GMS Prem Rates,PRC DELEGATED CO-COMMISSIONING,TRAMWAYS MEDICAL CENTRE,39298293,823,S6 4JQ
Department of Health,NHS Sheffield CCG,31/12/2021,C&M-GMS QOF Aspiration,PRC DELEGATED CO-COMMISSIONING,TRAMWAYS MEDICAL CENTRE,39298293,6868.53,S6 4JQ
Department of Health,NHS Sheffield CCG,31/12/2021,C&M-GMS DES Learn Dsblty Hlth Chk,PRC DELEGATED CO-COMMISSIONING,WHITE HOUSE SURGERY SHEFFIELD,39298297,700,S2 1SL
Department of Health,NHS Sheffield CCG,31/12/2021,C&M-GMS Global Sum,PRC DELEGATED CO-COMMISSIONING,WHITE HOUSE SURGERY SHEFFIELD,39298297,58829.15,S2 1SL
Department of Health,NHS Sheffield CCG,31/12/2021,C&M-GMS LONG COVID ES,PRC DELEGATED CO-COMMISSIONING,WHITE HOUSE SURGERY SHEFFIELD,39298297,283.44,S2 1SL
Department of Health,NHS Sheffield CCG,31/12/2021,C&M-GMS PCN DES Participation,PRC DELEGATED CO-COMMISSIONING,WHITE HOUSE SURGERY SHEFFIELD,39298297,1090.83,S2 1SL
Department of Health,NHS Sheffield CCG,31/12/2021,C&M-GMS Prem Notional Rent,PRC DELEGATED CO-COMMISSIONING,WHITE HOUSE SURGERY SHEFFIELD,39298297,9412.5,S2 1SL
Department of Health,NHS Sheffield CCG,31/12/2021,C&M-GMS Prem Rates,PRC DELEGATED CO-COMMISSIONING,WHITE HOUSE SURGERY SHEFFIELD,39298297,1632,S2 1SL
Department of Health,NHS Sheffield CCG,31/12/2021,C&M-GMS QOF Aspiration,PRC DELEGATED CO-COMMISSIONING,WHITE HOUSE SURGERY SHEFFIELD,39298297,6765.85,S2 1SL
Department of Health,NHS Sheffield CCG,31/12/2021,C&M-GMS WEIGHT MANAGEMENT SERVICE,PRC DELEGATED CO-COMMISSIONING,WHITE HOUSE SURGERY SHEFFIELD,39298297,46,S2 1SL
Department of Health,NHS Sheffield CCG,31/12/2021,C&M-GMS Global Sum,PRC DELEGATED CO-COMMISSIONING,FAR LANE MEDICAL CENTRE,39298300,59733.64,S6 4FA
Department of Health,NHS Sheffield CCG,31/12/2021,C&M-GMS LONG COVID ES,PRC DELEGATED CO-COMMISSIONING,FAR LANE MEDICAL CENTRE,39298300,294.7,S6 4FA
Department of Health,NHS Sheffield CCG,31/12/2021,C&M-GMS PCN DES Participation,PRC DELEGATED CO-COMMISSIONING,FAR LANE MEDICAL CENTRE,39298300,1139.22,S6 4FA
Department of Health,NHS Sheffield CCG,31/12/2021,C&M-GMS PCO Other,PRC DELEGATED CO-COMMISSIONING,FAR LANE MEDICAL CENTRE,39298300,458.3,S6 4FA
Department of Health,NHS Sheffield CCG,31/12/2021,C&M-GMS Prem Notional Rent,PRC DELEGATED CO-COMMISSIONING,FAR LANE MEDICAL CENTRE,39298300,3504.17,S6 4FA
Department of Health,NHS Sheffield CCG,31/12/2021,C&M-GMS Prem Rates,PRC DELEGATED CO-COMMISSIONING,FAR LANE MEDICAL CENTRE,39298300,1105,S6 4FA
Department of Health,NHS Sheffield CCG,31/12/2021,C&M-GMS QOF Aspiration,PRC DELEGATED CO-COMMISSIONING,FAR LANE MEDICAL CENTRE,39298300,6827.86,S6 4FA
Department of Health,NHS Sheffield CCG,31/12/2021,C&M-GMS DES Learn Dsblty Hlth Chk,PRC DELEGATED CO-COMMISSIONING,STONECROFT MEDICAL CENTRE,39298304,140,S12 2LJ
Department of Health,NHS Sheffield CCG,31/12/2021,C&M-GMS Global Sum,PRC DELEGATED CO-COMMISSIONING,STONECROFT MEDICAL CENTRE,39298304,36235.62,S12 2LJ
Department of Health,NHS Sheffield CCG,31/12/2021,C&M-GMS LONG COVID ES,PRC DELEGATED CO-COMMISSIONING,STONECROFT MEDICAL CENTRE,39298304,173.13,S12 2LJ
Department of Health,NHS Sheffield CCG,31/12/2021,C&M-GMS PCN DES Participation,PRC DELEGATED CO-COMMISSIONING,STONECROFT MEDICAL CENTRE,39298304,680.92,S12 2LJ
Department of Health,NHS Sheffield CCG,31/12/2021,C&M-GMS PCO Other,PRC DELEGATED CO-COMMISSIONING,STONECROFT MEDICAL CENTRE,39298304,290.3,S12 2LJ
Department of Health,NHS Sheffield CCG,31/12/2021,C&M-GMS Prem Notional Rent,PRC DELEGATED CO-COMMISSIONING,STONECROFT MEDICAL CENTRE,39298304,2808.33,S12 2LJ
Department of Health,NHS Sheffield CCG,31/12/2021,C&M-GMS Prem Rates,PRC DELEGATED CO-COMMISSIONING,STONECROFT MEDICAL CENTRE,39298304,1235,S12 2LJ
Department of Health,NHS Sheffield CCG,31/12/2021,C&M-GMS QOF Aspiration,PRC DELEGATED CO-COMMISSIONING,STONECROFT MEDICAL CENTRE,39298304,4286.72,S12 2LJ
Department of Health,NHS Sheffield CCG,31/12/2021,C&M-GMS DES Learn Dsblty Hlth Chk,PRC DELEGATED CO-COMMISSIONING,BROOMHILL SURGERY,39298314,420,S10 5BU
Department of Health,NHS Sheffield CCG,31/12/2021,C&M-GMS Global Sum,PRC DELEGATED CO-COMMISSIONING,BROOMHILL SURGERY,39298314,69043.11,S10 5BU
Department of Health,NHS Sheffield CCG,31/12/2021,C&M-GMS LONG COVID ES,PRC DELEGATED CO-COMMISSIONING,BROOMHILL SURGERY,39298314,402.82,S10 5BU
Department of Health,NHS Sheffield CCG,31/12/2021,C&M-GMS PCN DES Participation,PRC DELEGATED CO-COMMISSIONING,BROOMHILL SURGERY,39298314,1322.15,S10 5BU
Department of Health,NHS Sheffield CCG,31/12/2021,C&M-GMS Prem Cost Rent,PRC DELEGATED CO-COMMISSIONING,BROOMHILL SURGERY,39298314,3309.67,S10 5BU
Department of Health,NHS Sheffield CCG,31/12/2021,C&M-GMS Prem Notional Rent,PRC DELEGATED CO-COMMISSIONING,BROOMHILL SURGERY,39298314,2612.5,S10 5BU
Department of Health,NHS Sheffield CCG,31/12/2021,C&M-GMS Prem Water Rates,PRC DELEGATED CO-COMMISSIONING,BROOMHILL SURGERY,39298314,4629.5,S10 5BU
Department of Health,NHS Sheffield CCG,31/12/2021,C&M-GMS QOF Aspiration,PRC DELEGATED CO-COMMISSIONING,BROOMHILL SURGERY,39298314,7198.65,S10 5BU
Department of Health,NHS Sheffield CCG,31/12/2021,C&M-GMS DES Learn Dsblty Hlth Chk,PRC DELEGATED CO-COMMISSIONING,DUKE MEDICAL CENTRE,39298318,140,S2 2TD
Department of Health,NHS Sheffield CCG,31/12/2021,C&M-GMS Global Sum,PRC DELEGATED CO-COMMISSIONING,DUKE MEDICAL CENTRE,39298318,67527.72,S2 2TD
Department of Health,NHS Sheffield CCG,31/12/2021,C&M-GMS LONG COVID ES,PRC DELEGATED CO-COMMISSIONING,DUKE MEDICAL CENTRE,39298318,308.63,S2 2TD
Department of Health,NHS Sheffield CCG,31/12/2021,C&M-GMS PCN DES Participation,PRC DELEGATED CO-COMMISSIONING,DUKE MEDICAL CENTRE,39298318,1180.97,S2 2TD
Department of Health,NHS Sheffield CCG,31/12/2021,C&M-GMS PCO Other,PRC DELEGATED CO-COMMISSIONING,DUKE MEDICAL CENTRE,39298318,477.6,S2 2TD
Department of Health,NHS Sheffield CCG,31/12/2021,C&M-GMS Prem Notional Rent,PRC DELEGATED CO-COMMISSIONING,DUKE MEDICAL CENTRE,39298318,5721.67,S2 2TD
Department of Health,NHS Sheffield CCG,31/12/2021,C&M-GMS Prem Water Rates,PRC DELEGATED CO-COMMISSIONING,DUKE MEDICAL CENTRE,39298318,84.17,S2 2TD
Department of Health,NHS Sheffield CCG,31/12/2021,C&M-GMS QOF Aspiration,PRC DELEGATED CO-COMMISSIONING,DUKE MEDICAL CENTRE,39298318,6200.05,S2 2TD
Department of Health,NHS Sheffield CCG,31/12/2021,C&M-GMS WEIGHT MANAGEMENT SERVICE,PRC DELEGATED CO-COMMISSIONING,DUKE MEDICAL CENTRE,39298318,11.5,S2 2TD
Department of Health,NHS Sheffield CCG,31/12/2021,C&M-GMS DES Learn Dsblty Hlth Chk,PRC DELEGATED CO-COMMISSIONING,UPPERTHORPE MEDICAL CENTRE,39298323,840,S6 3FT
Department of Health,NHS Sheffield CCG,31/12/2021,C&M-GMS Global Sum,PRC DELEGATED CO-COMMISSIONING,UPPERTHORPE MEDICAL CENTRE,39298323,94702.87,S6 3FT
Department of Health,NHS Sheffield CCG,31/12/2021,C&M-GMS LONG COVID ES,PRC DELEGATED CO-COMMISSIONING,UPPERTHORPE MEDICAL CENTRE,39298323,508.93,S6 3FT
Department of Health,NHS Sheffield CCG,31/12/2021,C&M-GMS PCN DES Participation,PRC DELEGATED CO-COMMISSIONING,UPPERTHORPE MEDICAL CENTRE,39298323,1770.85,S6 3FT
Department of Health,NHS Sheffield CCG,31/12/2021,C&M-GMS PCO Locum Adop/Pat/Mat,PRC DELEGATED CO-COMMISSIONING,UPPERTHORPE MEDICAL CENTRE,39298323,886.62,S6 3FT
Department of Health,NHS Sheffield CCG,31/12/2021,C&M-GMS Prem Actual Rent,PRC DELEGATED CO-COMMISSIONING,UPPERTHORPE MEDICAL CENTRE,39298323,29894.5,S6 3FT
Department of Health,NHS Sheffield CCG,31/12/2021,C&M-GMS Prem Notional Rent,PRC DELEGATED CO-COMMISSIONING,UPPERTHORPE MEDICAL CENTRE,39298323,2128.33,S6 3FT
Department of Health,NHS Sheffield CCG,31/12/2021,C&M-GMS Prem Rates,PRC DELEGATED CO-COMMISSIONING,UPPERTHORPE MEDICAL CENTRE,39298323,2121,S6 3FT
Department of Health,NHS Sheffield CCG,31/12/2021,C&M-GMS Prem Water Rates,PRC DELEGATED CO-COMMISSIONING,UPPERTHORPE MEDICAL CENTRE,39298323,266.35,S6 3FT
Department of Health,NHS Sheffield CCG,31/12/2021,C&M-GMS QOF Aspiration,PRC DELEGATED CO-COMMISSIONING,UPPERTHORPE MEDICAL CENTRE,39298323,10749.32,S6 3FT
Department of Health,NHS Sheffield CCG,31/12/2021,C&M-GMS WEIGHT MANAGEMENT SERVICE,PRC DELEGATED CO-COMMISSIONING,UPPERTHORPE MEDICAL CENTRE,39298323,80.5,S6 3FT
Department of Health,NHS Sheffield CCG,31/12/2021,C&M-GMS Global Sum,PRC DELEGATED CO-COMMISSIONING,CHARNOCK HEALTH PRIMARY CARE CENTRE,39298330,46782.02,S12 3GH
Department of Health,NHS Sheffield CCG,31/12/2021,C&M-GMS LONG COVID ES,PRC DELEGATED CO-COMMISSIONING,CHARNOCK HEALTH PRIMARY CARE CENTRE,39298330,230.23,S12 3GH
Department of Health,NHS Sheffield CCG,31/12/2021,C&M-GMS PCN DES Participation,PRC DELEGATED CO-COMMISSIONING,CHARNOCK HEALTH PRIMARY CARE CENTRE,39298330,884.41,S12 3GH
Department of Health,NHS Sheffield CCG,31/12/2021,C&M-GMS PCO Other,PRC DELEGATED CO-COMMISSIONING,CHARNOCK HEALTH PRIMARY CARE CENTRE,39298330,369.2,S12 3GH
Department of Health,NHS Sheffield CCG,31/12/2021,C&M-GMS Prem Notional Rent,PRC DELEGATED CO-COMMISSIONING,CHARNOCK HEALTH PRIMARY CARE CENTRE,39298330,340,S12 3GH
Department of Health,NHS Sheffield CCG,31/12/2021,C&M-GMS Prem Rates,PRC DELEGATED CO-COMMISSIONING,CHARNOCK HEALTH PRIMARY CARE CENTRE,39298330,1160,S12 3GH
Department of Health,NHS Sheffield CCG,31/12/2021,C&M-GMS QOF Aspiration,PRC DELEGATED CO-COMMISSIONING,CHARNOCK HEALTH PRIMARY CARE CENTRE,39298330,5385.73,S12 3GH
Department of Health,NHS Sheffield CCG,31/12/2021,C&M-GMS Cost of Drugs -Prescribing,LOCAL ENHANCED SERVICES,HANDSWORTH MEDICAL PRACTICE SHEFFIELD,39298334,22637.52,S13 9BZ
Department of Health,NHS Sheffield CCG,31/12/2021,C&M-GMS Prof Fees Prescribing,PRC DELEGATED CO-COMMISSIONING,HANDSWORTH MEDICAL PRACTICE SHEFFIELD,39298334,3652.29,S13 9BZ
Department of Health,NHS Sheffield CCG,31/12/2021,C&M-GMS DES Learn Dsblty Hlth Chk,PRC DELEGATED CO-COMMISSIONING,BASLOW ROAD & SHOREHAM STREET SURGERIES,39298336,420,S17 4DR
Department of Health,NHS Sheffield CCG,31/12/2021,C&M-GMS Global Sum,PRC DELEGATED CO-COMMISSIONING,BASLOW ROAD & SHOREHAM STREET SURGERIES,39298336,102867.88,S17 4DR
Department of Health,NHS Sheffield CCG,31/12/2021,C&M-GMS LONG COVID ES,PRC DELEGATED CO-COMMISSIONING,BASLOW ROAD & SHOREHAM STREET SURGERIES,39298336,509.14,S17 4DR
Department of Health,NHS Sheffield CCG,31/12/2021,C&M-GMS PCN DES Participation,PRC DELEGATED CO-COMMISSIONING,BASLOW ROAD & SHOREHAM STREET SURGERIES,39298336,1957.06,S17 4DR
Department of Health,NHS Sheffield CCG,31/12/2021,C&M-GMS PCO Locum Sickness,PRC DELEGATED CO-COMMISSIONING,BASLOW ROAD & SHOREHAM STREET SURGERIES,39298336,52906.08,S17 4DR
Department of Health,NHS Sheffield CCG,31/12/2021,C&M-GMS PCO Other,PRC DELEGATED CO-COMMISSIONING,BASLOW ROAD & SHOREHAM STREET SURGERIES,39298336,760.5,S17 4DR
Department of Health,NHS Sheffield CCG,31/12/2021,C&M-GMS Prem Healthcentre Rent,PRC DELEGATED CO-COMMISSIONING,BASLOW ROAD & SHOREHAM STREET SURGERIES,39298336,15641.73,S17 4DR
Department of Health,NHS Sheffield CCG,31/12/2021,C&M-GMS Prem Notional Rent,PRC DELEGATED CO-COMMISSIONING,BASLOW ROAD & SHOREHAM STREET SURGERIES,39298336,8222.71,S17 4DR
Department of Health,NHS Sheffield CCG,31/12/2021,C&M-GMS Prem Rates,PRC DELEGATED CO-COMMISSIONING,BASLOW ROAD & SHOREHAM STREET SURGERIES,39298336,2185,S17 4DR
Department of Health,NHS Sheffield CCG,31/12/2021,C&M-GMS Prem Water Rates,PRC DELEGATED CO-COMMISSIONING,BASLOW ROAD & SHOREHAM STREET SURGERIES,39298336,231.7,S17 4DR
Department of Health,NHS Sheffield CCG,31/12/2021,C&M-GMS QOF Aspiration,PRC DELEGATED CO-COMMISSIONING,BASLOW ROAD & SHOREHAM STREET SURGERIES,39298336,10432.69,S17 4DR
Department of Health,NHS Sheffield CCG,31/12/2021,C&M-GMS Global Sum,PRC DELEGATED CO-COMMISSIONING,MATHEWS PRACTICE,39298342,58268.01,S2 4UJ
Department of Health,NHS Sheffield CCG,31/12/2021,C&M-GMS LONG COVID ES,PRC DELEGATED CO-COMMISSIONING,MATHEWS PRACTICE,39298342,308.59,S2 4UJ
Department of Health,NHS Sheffield CCG,31/12/2021,C&M-GMS PCN DES Participation,PRC DELEGATED CO-COMMISSIONING,MATHEWS PRACTICE,39298342,1147.05,S2 4UJ
Department of Health,NHS Sheffield CCG,31/12/2021,C&M-GMS Prem Rates,PRC DELEGATED CO-COMMISSIONING,MATHEWS PRACTICE,39298342,1466,S2 4UJ
Department of Health,NHS Sheffield CCG,31/12/2021,C&M-GMS QOF Aspiration,PRC DELEGATED CO-COMMISSIONING,MATHEWS PRACTICE,39298342,6845.8,S2 4UJ
Department of Health,NHS Sheffield CCG,31/12/2021,C&M-GMS DES Extended Hours Access,PRC DELEGATED CO-COMMISSIONING,ECCLESFIELD GROUP PRACTICE,39298347,5114.88,S35 9XQ
Department of Health,NHS Sheffield CCG,31/12/2021,C&M-GMS DES Learn Dsblty Hlth Chk,PRC DELEGATED CO-COMMISSIONING,ECCLESFIELD GROUP PRACTICE,39298347,1820,S35 9XQ
Department of Health,NHS Sheffield CCG,31/12/2021,C&M-GMS Global Sum,PRC DELEGATED CO-COMMISSIONING,ECCLESFIELD GROUP PRACTICE,39298347,75125.33,S35 9XQ
Department of Health,NHS Sheffield CCG,31/12/2021,C&M-GMS LONG COVID ES,PRC DELEGATED CO-COMMISSIONING,ECCLESFIELD GROUP PRACTICE,39298347,355.01,S35 9XQ
Department of Health,NHS Sheffield CCG,31/12/2021,C&M-GMS PCN DES Clin Pharmacist,PRC DELEGATED CO-COMMISSIONING,ECCLESFIELD GROUP PRACTICE,39298347,8776.95,S35 9XQ
Department of Health,NHS Sheffield CCG,31/12/2021,C&M-GMS PCN DES Clinical Director,PRC DELEGATED CO-COMMISSIONING,ECCLESFIELD GROUP PRACTICE,39298347,2614.27,S35 9XQ
Department of Health,NHS Sheffield CCG,31/12/2021,C&M-GMS PCN DES PCN support,LOCAL ENHANCED SERVICES,ECCLESFIELD GROUP PRACTICE,39298347,5328,S35 9XQ
Department of Health,NHS Sheffield CCG,31/12/2021,C&M-GMS PCN DES Participation,PRC DELEGATED CO-COMMISSIONING,ECCLESFIELD GROUP PRACTICE,39298347,1441.13,S35 9XQ
Department of Health,NHS Sheffield CCG,31/12/2021,C&M-GMS PCN DES Physiotherapist,PRC DELEGATED CO-COMMISSIONING,ECCLESFIELD GROUP PRACTICE,39298347,4716.25,S35 9XQ
Department of Health,NHS Sheffield CCG,31/12/2021,C&M-GMS PCN DES Soc Prescribing,PRC DELEGATED CO-COMMISSIONING,ECCLESFIELD GROUP PRACTICE,39298347,8074.69,S35 9XQ
Department of Health,NHS Sheffield CCG,31/12/2021,C&M-GMS PCO Other,PRC DELEGATED CO-COMMISSIONING,ECCLESFIELD GROUP PRACTICE,39298347,542,S35 9XQ
Department of Health,NHS Sheffield CCG,31/12/2021,C&M-GMS Prem Notional Rent,PRC DELEGATED CO-COMMISSIONING,ECCLESFIELD GROUP PRACTICE,39298347,10127.87,S35 9XQ
Department of Health,NHS Sheffield CCG,31/12/2021,C&M-GMS Prem Rates,PRC DELEGATED CO-COMMISSIONING,ECCLESFIELD GROUP PRACTICE,39298347,1063,S35 9XQ
Department of Health,NHS Sheffield CCG,31/12/2021,C&M-GMS Prem Water Rates,PRC DELEGATED CO-COMMISSIONING,ECCLESFIELD GROUP PRACTICE,39298347,467.25,S35 9XQ
Department of Health,NHS Sheffield CCG,31/12/2021,C&M-GMS QOF Aspiration,PRC DELEGATED CO-COMMISSIONING,ECCLESFIELD GROUP PRACTICE,39298347,9899.3,S35 9XQ
Department of Health,NHS Sheffield CCG,31/12/2021,C&M-GMS WEIGHT MANAGEMENT SERVICE,PRC DELEGATED CO-COMMISSIONING,ECCLESFIELD GROUP PRACTICE,39298347,92,S35 9XQ
Department of Health,NHS Sheffield CCG,31/12/2021,C&M-PCN-GMS DES Leadership Payment,PRC DELEGATED CO-COMMISSIONING,ECCLESFIELD GROUP PRACTICE,39298347,5182.33,S35 9XQ
Department of Health,NHS Sheffield CCG,31/12/2021,C&M-GMS Global Sum,PRC DELEGATED CO-COMMISSIONING,OUGHTIBRIDGE SURGERY,39298349,47279.9,S35 0FW
Department of Health,NHS Sheffield CCG,31/12/2021,C&M-GMS LONG COVID ES,PRC DELEGATED CO-COMMISSIONING,OUGHTIBRIDGE SURGERY,39298349,236.57,S35 0FW
Department of Health,NHS Sheffield CCG,31/12/2021,C&M-GMS PCN DES Participation,PRC DELEGATED CO-COMMISSIONING,OUGHTIBRIDGE SURGERY,39298349,886,S35 0FW
Department of Health,NHS Sheffield CCG,31/12/2021,C&M-GMS Prem Notional Rent,PRC DELEGATED CO-COMMISSIONING,OUGHTIBRIDGE SURGERY,39298349,4064.58,S35 0FW
Department of Health,NHS Sheffield CCG,31/12/2021,C&M-GMS Prem Rates,PRC DELEGATED CO-COMMISSIONING,OUGHTIBRIDGE SURGERY,39298349,511,S35 0FW
Department of Health,NHS Sheffield CCG,31/12/2021,C&M-GMS QOF Aspiration,PRC DELEGATED CO-COMMISSIONING,OUGHTIBRIDGE SURGERY,39298349,4819.4,S35 0FW
Department of Health,NHS Sheffield CCG,31/12/2021,C&M-GMS WEIGHT MANAGEMENT SERVICE,PRC DELEGATED CO-COMMISSIONING,OUGHTIBRIDGE SURGERY,39298349,11.5,S35 0FW
Department of Health,NHS Sheffield CCG,31/12/2021,C&M-GMS Cost of Drugs -Dispensing,LOCAL ENHANCED SERVICES,OUGHTIBRIDGE SURGERY,39298353,29805.42,S35 0FW
Department of Health,NHS Sheffield CCG,31/12/2021,C&M-GMS Prof Fees Dispensing,PRC DELEGATED CO-COMMISSIONING,OUGHTIBRIDGE SURGERY,39298353,5660.01,S35 0FW
Department of Health,NHS Sheffield CCG,31/12/2021,C&M-GMS DES Learn Dsblty Hlth Chk,PRC DELEGATED CO-COMMISSIONING,BEAUCHIEF MEDICAL PRACTICE,39298363,280,S8 0BJ
Department of Health,NHS Sheffield CCG,31/12/2021,C&M-GMS Global Sum,PRC DELEGATED CO-COMMISSIONING,BEAUCHIEF MEDICAL PRACTICE,39298363,53195.73,S8 0BJ
Department of Health,NHS Sheffield CCG,31/12/2021,C&M-GMS LONG COVID ES,PRC DELEGATED CO-COMMISSIONING,BEAUCHIEF MEDICAL PRACTICE,39298363,294,S8 0BJ
Department of Health,NHS Sheffield CCG,31/12/2021,C&M-GMS PCN DES Participation,PRC DELEGATED CO-COMMISSIONING,BEAUCHIEF MEDICAL PRACTICE,39298363,450.19,S8 0BJ
Department of Health,NHS Sheffield CCG,31/12/2021,C&M-GMS PCO Other,PRC DELEGATED CO-COMMISSIONING,BEAUCHIEF MEDICAL PRACTICE,39298363,499.2,S8 0BJ
Department of Health,NHS Sheffield CCG,31/12/2021,C&M-GMS Prem Notional Rent,PRC DELEGATED CO-COMMISSIONING,BEAUCHIEF MEDICAL PRACTICE,39298363,3770.84,S8 0BJ
Department of Health,NHS Sheffield CCG,31/12/2021,C&M-GMS Prem Rates,PRC DELEGATED CO-COMMISSIONING,BEAUCHIEF MEDICAL PRACTICE,39298363,1409,S8 0BJ
Department of Health,NHS Sheffield CCG,31/12/2021,C&M-GMS QOF Aspiration,PRC DELEGATED CO-COMMISSIONING,BEAUCHIEF MEDICAL PRACTICE,39298363,5567.74,S8 0BJ
Department of Health,NHS Sheffield CCG,31/12/2021,C&M-GMS WEIGHT MANAGEMENT SERVICE,PRC DELEGATED CO-COMMISSIONING,BEAUCHIEF MEDICAL PRACTICE,39298363,11.5,S8 0BJ
Department of Health,NHS Sheffield CCG,31/12/2021,C&M-GMS Global Sum,PRC DELEGATED CO-COMMISSIONING,HOLLIES MEDICAL CENTRE,39298374,68587.56,S11 9AL
Department of Health,NHS Sheffield CCG,31/12/2021,C&M-GMS LONG COVID ES,PRC DELEGATED CO-COMMISSIONING,HOLLIES MEDICAL CENTRE,39298374,410.66,S11 9AL
Department of Health,NHS Sheffield CCG,31/12/2021,C&M-GMS PCN DES Participation,PRC DELEGATED CO-COMMISSIONING,HOLLIES MEDICAL CENTRE,39298374,1270.72,S11 9AL
Department of Health,NHS Sheffield CCG,31/12/2021,C&M-GMS PCO Other,PRC DELEGATED CO-COMMISSIONING,HOLLIES MEDICAL CENTRE,39298374,618.9,S11 9AL
Department of Health,NHS Sheffield CCG,31/12/2021,C&M-GMS Prem Notional Rent,PRC DELEGATED CO-COMMISSIONING,HOLLIES MEDICAL CENTRE,39298374,3358.33,S11 9AL
Department of Health,NHS Sheffield CCG,31/12/2021,C&M-GMS Prem Rates,PRC DELEGATED CO-COMMISSIONING,HOLLIES MEDICAL CENTRE,39298374,1272,S11 9AL
Department of Health,NHS Sheffield CCG,31/12/2021,C&M-GMS QOF Aspiration,PRC DELEGATED CO-COMMISSIONING,HOLLIES MEDICAL CENTRE,39298374,8186.06,S11 9AL
Department of Health,NHS Sheffield CCG,31/12/2021,C&M-GMS Global Sum,PRC DELEGATED CO-COMMISSIONING,GRENOSIDE SURGERY,39298380,66219.61,S35 8NX
Department of Health,NHS Sheffield CCG,31/12/2021,C&M-GMS LONG COVID ES,PRC DELEGATED CO-COMMISSIONING,GRENOSIDE SURGERY,39298380,319.72,S35 8NX
Department of Health,NHS Sheffield CCG,31/12/2021,C&M-GMS PCN DES Participation,PRC DELEGATED CO-COMMISSIONING,GRENOSIDE SURGERY,39298380,1250.62,S35 8NX
Department of Health,NHS Sheffield CCG,31/12/2021,C&M-GMS PCO Other,PRC DELEGATED CO-COMMISSIONING,GRENOSIDE SURGERY,39298380,492.7,S35 8NX
Department of Health,NHS Sheffield CCG,31/12/2021,C&M-GMS Prem Notional Rent,PRC DELEGATED CO-COMMISSIONING,GRENOSIDE SURGERY,39298380,8375,S35 8NX
Department of Health,NHS Sheffield CCG,31/12/2021,C&M-GMS Prem Rates,PRC DELEGATED CO-COMMISSIONING,GRENOSIDE SURGERY,39298380,1622,S35 8NX
Department of Health,NHS Sheffield CCG,31/12/2021,C&M-GMS QOF Aspiration,PRC DELEGATED CO-COMMISSIONING,GRENOSIDE SURGERY,39298380,6590.45,S35 8NX
Department of Health,NHS Sheffield CCG,31/12/2021,C&M-GMS Global Sum,PRC DELEGATED CO-COMMISSIONING,SHARROW LANE MEDICAL CENTRE,39298388,26720.16,S11 8AN
Department of Health,NHS Sheffield CCG,31/12/2021,C&M-GMS LONG COVID ES,PRC DELEGATED CO-COMMISSIONING,SHARROW LANE MEDICAL CENTRE,39298388,169.59,S11 8AN
Department of Health,NHS Sheffield CCG,31/12/2021,C&M-GMS PCN DES Participation,PRC DELEGATED CO-COMMISSIONING,SHARROW LANE MEDICAL CENTRE,39298388,500.68,S11 8AN
Department of Health,NHS Sheffield CCG,31/12/2021,C&M-GMS Prem Notional Rent,PRC DELEGATED CO-COMMISSIONING,SHARROW LANE MEDICAL CENTRE,39298388,2741.67,S11 8AN
Department of Health,NHS Sheffield CCG,31/12/2021,C&M-GMS Prem Rates,PRC DELEGATED CO-COMMISSIONING,SHARROW LANE MEDICAL CENTRE,39298388,434,S11 8AN
Department of Health,NHS Sheffield CCG,31/12/2021,C&M-GMS QOF Aspiration,PRC DELEGATED CO-COMMISSIONING,SHARROW LANE MEDICAL CENTRE,39298388,2983.54,S11 8AN
Department of Health,NHS Sheffield CCG,31/12/2021,C&M-GMS DES Learn Dsblty Hlth Chk,PRC DELEGATED CO-COMMISSIONING,SHIREGREEN MEDICAL CENTRE,39298396,700,S5 0RG
Department of Health,NHS Sheffield CCG,31/12/2021,C&M-GMS Global Sum,PRC DELEGATED CO-COMMISSIONING,SHIREGREEN MEDICAL CENTRE,39298396,60503.34,S5 0RG
Department of Health,NHS Sheffield CCG,31/12/2021,C&M-GMS LONG COVID ES,PRC DELEGATED CO-COMMISSIONING,SHIREGREEN MEDICAL CENTRE,39298396,317.7,S5 0RG
Department of Health,NHS Sheffield CCG,31/12/2021,C&M-GMS PCN DES Participation,PRC DELEGATED CO-COMMISSIONING,SHIREGREEN MEDICAL CENTRE,39298396,1161.13,S5 0RG
Department of Health,NHS Sheffield CCG,31/12/2021,C&M-GMS Prem Cost Rent,PRC DELEGATED CO-COMMISSIONING,SHIREGREEN MEDICAL CENTRE,39298396,1792.33,S5 0RG
Department of Health,NHS Sheffield CCG,31/12/2021,C&M-GMS Prem Notional Rent,PRC DELEGATED CO-COMMISSIONING,SHIREGREEN MEDICAL CENTRE,39298396,5375,S5 0RG
Department of Health,NHS Sheffield CCG,31/12/2021,C&M-GMS Prem Rates,PRC DELEGATED CO-COMMISSIONING,SHIREGREEN MEDICAL CENTRE,39298396,1868,S5 0RG
Department of Health,NHS Sheffield CCG,31/12/2021,C&M-GMS QOF Aspiration,PRC DELEGATED CO-COMMISSIONING,SHIREGREEN MEDICAL CENTRE,39298396,7267.46,S5 0RG
Department of Health,NHS Sheffield CCG,31/12/2021,C&M-GMS WEIGHT MANAGEMENT SERVICE,PRC DELEGATED CO-COMMISSIONING,SHIREGREEN MEDICAL CENTRE,39298396,207,S5 0RG
Department of Health,NHS Sheffield CCG,31/12/2021,C&M-GMS DES Learn Dsblty Hlth Chk,PRC DELEGATED CO-COMMISSIONING,HEELEY GREEN SURGERY,39298402,140,S2 3AJ
Department of Health,NHS Sheffield CCG,31/12/2021,C&M-GMS Global Sum,PRC DELEGATED CO-COMMISSIONING,HEELEY GREEN SURGERY,39298402,44286.05,S2 3AJ
Department of Health,NHS Sheffield CCG,31/12/2021,C&M-GMS LONG COVID ES,PRC DELEGATED CO-COMMISSIONING,HEELEY GREEN SURGERY,39298402,241.6,S2 3AJ
Department of Health,NHS Sheffield CCG,31/12/2021,C&M-GMS PCN DES Participation,PRC DELEGATED CO-COMMISSIONING,HEELEY GREEN SURGERY,39298402,848.8,S2 3AJ
Department of Health,NHS Sheffield CCG,31/12/2021,C&M-GMS Prem Notional Rent,PRC DELEGATED CO-COMMISSIONING,HEELEY GREEN SURGERY,39298402,3254.17,S2 3AJ
Department of Health,NHS Sheffield CCG,31/12/2021,C&M-GMS QOF Aspiration,PRC DELEGATED CO-COMMISSIONING,HEELEY GREEN SURGERY,39298402,4674.69,S2 3AJ
Department of Health,NHS Sheffield CCG,31/12/2021,C&M-GMS Global Sum,PRC DELEGATED CO-COMMISSIONING,DEVONSHIRE GREEN MEDICAL CENTRE,39298410,52377.01,S3 7SF
Department of Health,NHS Sheffield CCG,31/12/2021,C&M-GMS LONG COVID ES,PRC DELEGATED CO-COMMISSIONING,DEVONSHIRE GREEN MEDICAL CENTRE,39298410,295.19,S3 7SF
Department of Health,NHS Sheffield CCG,31/12/2021,C&M-GMS PCN DES Participation,PRC DELEGATED CO-COMMISSIONING,DEVONSHIRE GREEN MEDICAL CENTRE,39298410,936.47,S3 7SF
Department of Health,NHS Sheffield CCG,31/12/2021,C&M-GMS Prem Notional Rent,PRC DELEGATED CO-COMMISSIONING,DEVONSHIRE GREEN MEDICAL CENTRE,39298410,5987.5,S3 7SF
Department of Health,NHS Sheffield CCG,31/12/2021,C&M-GMS Prem Rates,PRC DELEGATED CO-COMMISSIONING,DEVONSHIRE GREEN MEDICAL CENTRE,39298410,778,S3 7SF
Department of Health,NHS Sheffield CCG,31/12/2021,C&M-GMS Prem Water Rates,PRC DELEGATED CO-COMMISSIONING,DEVONSHIRE GREEN MEDICAL CENTRE,39298410,150.16,S3 7SF
Department of Health,NHS Sheffield CCG,31/12/2021,C&M-GMS QOF Aspiration,PRC DELEGATED CO-COMMISSIONING,DEVONSHIRE GREEN MEDICAL CENTRE,39298410,5473.95,S3 7SF
Department of Health,NHS Sheffield CCG,31/12/2021,C&M-GMS Global Sum,PRC DELEGATED CO-COMMISSIONING,CROOKES PRACTICE,39298418,57335.94,S10 1GN
Department of Health,NHS Sheffield CCG,31/12/2021,C&M-GMS LONG COVID ES,PRC DELEGATED CO-COMMISSIONING,CROOKES PRACTICE,39298418,348.04,S10 1GN
Department of Health,NHS Sheffield CCG,31/12/2021,C&M-GMS PCN DES Participation,PRC DELEGATED CO-COMMISSIONING,CROOKES PRACTICE,39298418,1077.54,S10 1GN
Department of Health,NHS Sheffield CCG,31/12/2021,C&M-GMS PCO Other,PRC DELEGATED CO-COMMISSIONING,CROOKES PRACTICE,39298418,532.1,S10 1GN
Department of Health,NHS Sheffield CCG,31/12/2021,C&M-GMS Prem Notional Rent,PRC DELEGATED CO-COMMISSIONING,CROOKES PRACTICE,39298418,4006.59,S10 1GN
Department of Health,NHS Sheffield CCG,31/12/2021,C&M-GMS Prem Rates,PRC DELEGATED CO-COMMISSIONING,CROOKES PRACTICE,39298418,1534,S10 1GN
Department of Health,NHS Sheffield CCG,31/12/2021,C&M-GMS QOF Aspiration,PRC DELEGATED CO-COMMISSIONING,CROOKES PRACTICE,39298418,5404.47,S10 1GN
Department of Health,NHS Sheffield CCG,31/12/2021,C&M-GMS Global Sum,PRC DELEGATED CO-COMMISSIONING,MILL ROAD SURGERY SHEFFIELD,39298438,44986.92,S35 9XQ
Department of Health,NHS Sheffield CCG,31/12/2021,C&M-GMS LONG COVID ES,PRC DELEGATED CO-COMMISSIONING,MILL ROAD SURGERY SHEFFIELD,39298438,216.91,S35 9XQ
Department of Health,NHS Sheffield CCG,31/12/2021,C&M-GMS PCN DES Participation,PRC DELEGATED CO-COMMISSIONING,MILL ROAD SURGERY SHEFFIELD,39298438,838.81,S35 9XQ
Department of Health,NHS Sheffield CCG,31/12/2021,C&M-GMS PCO Other,PRC DELEGATED CO-COMMISSIONING,MILL ROAD SURGERY SHEFFIELD,39298438,350.7,S35 9XQ
Department of Health,NHS Sheffield CCG,31/12/2021,C&M-GMS Prem Notional Rent,PRC DELEGATED CO-COMMISSIONING,MILL ROAD SURGERY SHEFFIELD,39298438,4593.33,S35 9XQ
Department of Health,NHS Sheffield CCG,31/12/2021,C&M-GMS Prem Rates,PRC DELEGATED CO-COMMISSIONING,MILL ROAD SURGERY SHEFFIELD,39298438,674,S35 9XQ
Department of Health,NHS Sheffield CCG,31/12/2021,C&M-GMS QOF Aspiration,PRC DELEGATED CO-COMMISSIONING,MILL ROAD SURGERY SHEFFIELD,39298438,5365.62,S35 9XQ
Department of Health,NHS Sheffield CCG,31/12/2021,C&M-GMS DES Learn Dsblty Hlth Chk,PRC DELEGATED CO-COMMISSIONING,GREYSTONES MEDICAL CENTRE,39298457,140,S11 7BJ
Department of Health,NHS Sheffield CCG,31/12/2021,C&M-GMS Global Sum,PRC DELEGATED CO-COMMISSIONING,GREYSTONES MEDICAL CENTRE,39298457,21389.81,S11 7BJ
Department of Health,NHS Sheffield CCG,31/12/2021,C&M-GMS LONG COVID ES,PRC DELEGATED CO-COMMISSIONING,GREYSTONES MEDICAL CENTRE,39298457,153.39,S11 7BJ
Department of Health,NHS Sheffield CCG,31/12/2021,C&M-GMS PCN DES Participation,PRC DELEGATED CO-COMMISSIONING,GREYSTONES MEDICAL CENTRE,39298457,403.29,S11 7BJ
Department of Health,NHS Sheffield CCG,31/12/2021,C&M-GMS PCO Other,PRC DELEGATED CO-COMMISSIONING,GREYSTONES MEDICAL CENTRE,39298457,263,S11 7BJ
Department of Health,NHS Sheffield CCG,31/12/2021,C&M-GMS Prem Notional Rent,PRC DELEGATED CO-COMMISSIONING,GREYSTONES MEDICAL CENTRE,39298457,2885.42,S11 7BJ
Department of Health,NHS Sheffield CCG,31/12/2021,C&M-GMS Prem Rates,PRC DELEGATED CO-COMMISSIONING,GREYSTONES MEDICAL CENTRE,39298457,426,S11 7BJ
Department of Health,NHS Sheffield CCG,31/12/2021,C&M-GMS QOF Aspiration,PRC DELEGATED CO-COMMISSIONING,GREYSTONES MEDICAL CENTRE,39298457,2481.16,S11 7BJ
Department of Health,NHS Sheffield CCG,31/12/2021,C&M-GMS Global Sum,PRC DELEGATED CO-COMMISSIONING,STANNINGTON MEDICAL CENTRE,39298465,27444.65,S6 6BX
Department of Health,NHS Sheffield CCG,31/12/2021,C&M-GMS PCO Other,PRC DELEGATED CO-COMMISSIONING,STANNINGTON MEDICAL CENTRE,39298465,242,S6 6BX
Department of Health,NHS Sheffield CCG,31/12/2021,C&M-GMS Prem Notional Rent,PRC DELEGATED CO-COMMISSIONING,STANNINGTON MEDICAL CENTRE,39298465,2625,S6 6BX
Department of Health,NHS Sheffield CCG,31/12/2021,C&M-GMS Prem Rates,PRC DELEGATED CO-COMMISSIONING,STANNINGTON MEDICAL CENTRE,39298465,469,S6 6BX
Department of Health,NHS Sheffield CCG,31/12/2021,C&M-GMS QOF Aspiration,PRC DELEGATED CO-COMMISSIONING,STANNINGTON MEDICAL CENTRE,39298465,3194.14,S6 6BX
Department of Health,NHS Sheffield CCG,31/12/2021,C&M-GMS IT Comm Servs -GP Practices,PRIMARY CARE IT,TRUSTMARQUE SOLUTIONS LTD,39313516,2368.8,YO41 1LZ
Department of Health,NHS Sheffield CCG,31/12/2021,C&M-GMS IT Comm Servs -GP Practices,PRIMARY CARE IT,TRUSTMARQUE SOLUTIONS LTD,39313516,10264.8,YO41 1LZ
Department of Health,NHS Sheffield CCG,31/12/2021,C&M-GMS IT Comm Servs -GP Practices,PRIMARY CARE IT,TRUSTMARQUE SOLUTIONS LTD,39313516,1856.4,YO41 1LZ
Department of Health,NHS Sheffield CCG,31/12/2021,C&M-GMS IT Comm Servs -GP Practices,PRIMARY CARE IT,TRUSTMARQUE SOLUTIONS LTD,39313516,14291.76,YO41 1LZ
Department of Health,NHS Sheffield CCG,31/12/2021,C&M-GMS IT Comm Servs -GP Practices,PRIMARY CARE IT,TRUSTMARQUE SOLUTIONS LTD,39313516,8290.8,YO41 1LZ
Department of Health,NHS Sheffield CCG,31/12/2021,C&M-GMS IT Comm Servs -GP Practices,PRIMARY CARE IT,TRUSTMARQUE SOLUTIONS LTD,39313516,1499.4,YO41 1LZ
Department of Health,NHS Sheffield CCG,31/12/2021,C&M-GMS IT Comm Servs -GP Practices,PRIMARY CARE IT,TRUSTMARQUE SOLUTIONS LTD,39313516,7714.39,YO41 1LZ
Department of Health,NHS Sheffield CCG,31/12/2021,C&M-GMS DES Learn Dsblty Hlth Chk,PRC DELEGATED CO-COMMISSIONING,CARTERKNOWLE & DORE MEDICAL PRACTICE,39317158,6720,S7 2DW
Department of Health,NHS Sheffield CCG,31/12/2021,C&M-GMS Global Sum,PRC DELEGATED CO-COMMISSIONING,CARTERKNOWLE & DORE MEDICAL PRACTICE,39317158,95620.98,S7 2DW
Department of Health,NHS Sheffield CCG,31/12/2021,C&M-GMS LONG COVID ES,PRC DELEGATED CO-COMMISSIONING,CARTERKNOWLE & DORE MEDICAL PRACTICE,39317158,522.49,S7 2DW
Department of Health,NHS Sheffield CCG,31/12/2021,C&M-GMS PCN DES Participation,PRC DELEGATED CO-COMMISSIONING,CARTERKNOWLE & DORE MEDICAL PRACTICE,39317158,1765.5,S7 2DW
Department of Health,NHS Sheffield CCG,31/12/2021,C&M-GMS PCO Other,PRC DELEGATED CO-COMMISSIONING,CARTERKNOWLE & DORE MEDICAL PRACTICE,39317158,773.4,S7 2DW
Department of Health,NHS Sheffield CCG,31/12/2021,C&M-GMS Prem Notional Rent,PRC DELEGATED CO-COMMISSIONING,CARTERKNOWLE & DORE MEDICAL PRACTICE,39317158,7855,S7 2DW
Department of Health,NHS Sheffield CCG,31/12/2021,C&M-GMS QOF Aspiration,PRC DELEGATED CO-COMMISSIONING,CARTERKNOWLE & DORE MEDICAL PRACTICE,39317158,11516.91,S7 2DW
Department of Health,NHS Sheffield CCG,31/12/2021,C&M-GMS WEIGHT MANAGEMENT SERVICE,PRC DELEGATED CO-COMMISSIONING,CARTERKNOWLE & DORE MEDICAL PRACTICE,39317158,161,S7 2DW
Department of Health,NHS Sheffield CCG,31/12/2021,C&M-GMS DES Learn Dsblty Hlth Chk,PRC DELEGATED CO-COMMISSIONING,HANDSWORTH MEDICAL PRACTICE SHEFFIELD,39317161,1260,S13 9BZ
Department of Health,NHS Sheffield CCG,31/12/2021,C&M-GMS Global Sum,PRC DELEGATED CO-COMMISSIONING,HANDSWORTH MEDICAL PRACTICE SHEFFIELD,39317161,84541.53,S13 9BZ
Department of Health,NHS Sheffield CCG,31/12/2021,C&M-GMS LONG COVID ES,PRC DELEGATED CO-COMMISSIONING,HANDSWORTH MEDICAL PRACTICE SHEFFIELD,39317161,431.27,S13 9BZ
Department of Health,NHS Sheffield CCG,31/12/2021,C&M-GMS PCN DES Participation,PRC DELEGATED CO-COMMISSIONING,HANDSWORTH MEDICAL PRACTICE SHEFFIELD,39317161,1619.69,S13 9BZ
Department of Health,NHS Sheffield CCG,31/12/2021,C&M-GMS Prem Notional Rent,PRC DELEGATED CO-COMMISSIONING,HANDSWORTH MEDICAL PRACTICE SHEFFIELD,39317161,3321.66,S13 9BZ
Department of Health,NHS Sheffield CCG,31/12/2021,C&M-GMS Prem Water Rates,PRC DELEGATED CO-COMMISSIONING,HANDSWORTH MEDICAL PRACTICE SHEFFIELD,39317161,59.36,S13 9BZ
Department of Health,NHS Sheffield CCG,31/12/2021,C&M-GMS QOF Aspiration,PRC DELEGATED CO-COMMISSIONING,HANDSWORTH MEDICAL PRACTICE SHEFFIELD,39317161,8749.2,S13 9BZ
Department of Health,NHS Sheffield CCG,31/12/2021,C&M-GMS WEIGHT MANAGEMENT SERVICE,PRC DELEGATED CO-COMMISSIONING,HANDSWORTH MEDICAL PRACTICE SHEFFIELD,39317161,11.5,S13 9BZ
Department of Health,NHS Sheffield CCG,31/12/2021,C&M-GMS DES Learn Dsblty Hlth Chk,PRC DELEGATED CO-COMMISSIONING,ELM LANE SURGERY,39317166,1400,S5 7TW
Department of Health,NHS Sheffield CCG,31/12/2021,C&M-GMS Global Sum,PRC DELEGATED CO-COMMISSIONING,ELM LANE SURGERY,39317166,46125.64,S5 7TW
Department of Health,NHS Sheffield CCG,31/12/2021,C&M-GMS LONG COVID ES,PRC DELEGATED CO-COMMISSIONING,ELM LANE SURGERY,39317166,222.68,S5 7TW
Department of Health,NHS Sheffield CCG,31/12/2021,C&M-GMS PCN DES Participation,PRC DELEGATED CO-COMMISSIONING,ELM LANE SURGERY,39317166,865.86,S5 7TW
Department of Health,NHS Sheffield CCG,31/12/2021,C&M-GMS PCO Other,PRC DELEGATED CO-COMMISSIONING,ELM LANE SURGERY,39317166,358.8,S5 7TW
Department of Health,NHS Sheffield CCG,31/12/2021,C&M-GMS Prem Notional Rent,PRC DELEGATED CO-COMMISSIONING,ELM LANE SURGERY,39317166,5343,S5 7TW
Department of Health,NHS Sheffield CCG,31/12/2021,C&M-GMS Prem Rates,PRC DELEGATED CO-COMMISSIONING,ELM LANE SURGERY,39317166,959,S5 7TW
Department of Health,NHS Sheffield CCG,31/12/2021,C&M-GMS QOF Aspiration,PRC DELEGATED CO-COMMISSIONING,ELM LANE SURGERY,39317166,5528.96,S5 7TW
Department of Health,NHS Sheffield CCG,31/12/2021,C&M-GMS WEIGHT MANAGEMENT SERVICE,PRC DELEGATED CO-COMMISSIONING,ELM LANE SURGERY,39317166,23,S5 7TW
Department of Health,NHS Sheffield CCG,31/12/2021,C&M-GMS DES Learn Dsblty Hlth Chk,PRC DELEGATED CO-COMMISSIONING,MEDICAL CENTRE CRYSTAL PEAKS,39317170,140,S20 7HZ
Department of Health,NHS Sheffield CCG,31/12/2021,C&M-GMS Global Sum,PRC DELEGATED CO-COMMISSIONING,MEDICAL CENTRE CRYSTAL PEAKS,39317170,51119.33,S20 7HZ
Department of Health,NHS Sheffield CCG,31/12/2021,C&M-GMS LONG COVID ES,PRC DELEGATED CO-COMMISSIONING,MEDICAL CENTRE CRYSTAL PEAKS,39317170,274.79,S20 7HZ
Department of Health,NHS Sheffield CCG,31/12/2021,C&M-GMS PCN DES Participation,PRC DELEGATED CO-COMMISSIONING,MEDICAL CENTRE CRYSTAL PEAKS,39317170,978.29,S20 7HZ
Department of Health,NHS Sheffield CCG,31/12/2021,C&M-GMS PCO Locum Adop/Pat/Mat,PRC DELEGATED CO-COMMISSIONING,MEDICAL CENTRE CRYSTAL PEAKS,39317170,7401.6,S20 7HZ
Department of Health,NHS Sheffield CCG,31/12/2021,C&M-GMS PCO Other,PRC DELEGATED CO-COMMISSIONING,MEDICAL CENTRE CRYSTAL PEAKS,39317170,430.8,S20 7HZ
Department of Health,NHS Sheffield CCG,31/12/2021,C&M-GMS Prem Notional Rent,PRC DELEGATED CO-COMMISSIONING,MEDICAL CENTRE CRYSTAL PEAKS,39317170,270,S20 7HZ
Department of Health,NHS Sheffield CCG,31/12/2021,C&M-GMS Prem Rates,PRC DELEGATED CO-COMMISSIONING,MEDICAL CENTRE CRYSTAL PEAKS,39317170,1073,S20 7HZ
Department of Health,NHS Sheffield CCG,31/12/2021,C&M-GMS QOF Aspiration,PRC DELEGATED CO-COMMISSIONING,MEDICAL CENTRE CRYSTAL PEAKS,39317170,7126.23,S20 7HZ
Department of Health,NHS Sheffield CCG,31/12/2021,C&M-GMS WEIGHT MANAGEMENT SERVICE,PRC DELEGATED CO-COMMISSIONING,MEDICAL CENTRE CRYSTAL PEAKS,39317170,11.5,S20 7HZ
Department of Health,NHS Sheffield CCG,31/12/2021,C&M- PCN DES CARE COORDINATOR,PRC DELEGATED CO-COMMISSIONING,PRIMARY CARE SHEFFIELD LTD,39320537,1986.94,S9 4EU
Department of Health,NHS Sheffield CCG,31/12/2021,C&M-GMS C&M-APMS PCN DES Physician Assoc,PRC DELEGATED CO-COMMISSIONING,PRIMARY CARE SHEFFIELD LTD,39320537,8407.3,S9 4EU
Department of Health,NHS Sheffield CCG,31/12/2021,C&M-GMS PCN DES Clin Pharmacist,PRC DELEGATED CO-COMMISSIONING,PRIMARY CARE SHEFFIELD LTD,39320537,11083.35,S9 4EU
Department of Health,NHS Sheffield CCG,31/12/2021,C&M-GMS PCN DES Home/RR paramedic,PRC DELEGATED CO-COMMISSIONING,PRIMARY CARE SHEFFIELD LTD,39320537,921.88,S9 4EU
Department of Health,NHS Sheffield CCG,31/12/2021,C&M-GMS PCN DES Physiotherapist,PRC DELEGATED CO-COMMISSIONING,PRIMARY CARE SHEFFIELD LTD,39320537,2105.19,S9 4EU
Department of Health,NHS Sheffield CCG,31/12/2021,C&M-GMS PCN DES Soc Prescribing,PRC DELEGATED CO-COMMISSIONING,PRIMARY CARE SHEFFIELD LTD,39320537,4223.07,S9 4EU
Department of Health,NHS Sheffield CCG,31/12/2021,C&M-PCN DES PHARMACY TECHNICIANS,PRC DELEGATED CO-COMMISSIONING,PRIMARY CARE SHEFFIELD LTD,39320537,2028.45,S9 4EU
Department of Health,NHS Sheffield CCG,31/12/2021,Participation Fees,BEREAVEMENT SERVICE,ROTHERHAM METROPOLITAN BOROUGH COUNCIL,39330650,32500,S60 1AE
Department of Health,NHS Sheffield CCG,31/12/2021,Clinical&Medical-Serv Recd-F Trsts,BEREAVEMENT SERVICE,DONCASTER AND BASSETLAW HOSPITALS NHS FOUNDATION TRUST,39330659,27749,WF3 1WE
Department of Health,NHS Sheffield CCG,31/12/2021,Course Fees,BEREAVEMENT SERVICE,AFFINA ORGANISATION DEVELOPMENT LTD,39341782,90000,GU14 8AL
Department of Health,NHS Sheffield CCG,31/12/2021,Recharge : Received,PATIENT TRANSPORT,NHS DONCASTER CCG,39341912,174600.69,WF3 1WE
Department of Health,NHS Sheffield CCG,31/12/2021,C&M- PCN DES Nursing Associate,PRC DELEGATED CO-COMMISSIONING,PRIMARY CARE SHEFFIELD LTD,39342023,1983.15,S9 4EU
Department of Health,NHS Sheffield CCG,31/12/2021,C&M-GMS C&M-APMS PCN DES Physician Assoc,PRC DELEGATED CO-COMMISSIONING,PRIMARY CARE SHEFFIELD LTD,39342023,8653.65,S9 4EU
Department of Health,NHS Sheffield CCG,31/12/2021,C&M-GMS PCN DES Clin Pharmacist,PRC DELEGATED CO-COMMISSIONING,PRIMARY CARE SHEFFIELD LTD,39342023,21768.44,S9 4EU
Department of Health,NHS Sheffield CCG,31/12/2021,C&M-GMS PCN DES Home/RR paramedic,PRC DELEGATED CO-COMMISSIONING,PRIMARY CARE SHEFFIELD LTD,39342023,4549.5,S9 4EU
Department of Health,NHS Sheffield CCG,31/12/2021,C&M-GMS PCN DES Physiotherapist,PRC DELEGATED CO-COMMISSIONING,PRIMARY CARE SHEFFIELD LTD,39342023,8925,S9 4EU
Department of Health,NHS Sheffield CCG,31/12/2021,C&M-GMS PCN DES Soc Prescribing,PRC DELEGATED CO-COMMISSIONING,PRIMARY CARE SHEFFIELD LTD,39342023,2917.68,S9 4EU
Department of Health,NHS Sheffield CCG,31/12/2021,C&M-PCN DES PHARMACY TECHNICIANS,PRC DELEGATED CO-COMMISSIONING,PRIMARY CARE SHEFFIELD LTD,39342023,3035.67,S9 4EU
